Publisher Label,Publisher URI,"Supplier ID","Supplier","Invoice No.","Amount (£)","Purpose","Transaction Number","Payment Date","Organisational Unit","Cost Centre(T)","Internal Category Number"
"Wolverhampton City Council","http://opendatacommunities.org/id/metropolitan-district-council/wolverhampton","700044","Access To Business","475","17,250.00","TPP - Social Care Support Services","130202670","24/01/2018","Enterprise","Access to Business","R5501"
"Wolverhampton City Council","http://opendatacommunities.org/id/metropolitan-district-council/wolverhampton","700044","Access To Business","474","15,000.00","Grant Payments","130202063","17/01/2018","Enterprise","Business Crime Initiative","R4700"
"Wolverhampton City Council","http://opendatacommunities.org/id/metropolitan-district-council/wolverhampton","700194","Michelle Caney","INVMC21","2,100.00","Services - Professional Fees","130201536","10/01/2018","Public Protection","EHTS Operational Costs","R4400"
"Wolverhampton City Council","http://opendatacommunities.org/id/metropolitan-district-council/wolverhampton","700264","Acorn Environmental Mgt Group Limited","11016","1,742.40","Grounds Maintenance - Contract","130202672","31/01/2018","Environmental Maintenance","Arbor Scheme","R2075"
"Wolverhampton City Council","http://opendatacommunities.org/id/metropolitan-district-council/wolverhampton","700264","Acorn Environmental Mgt Group Limited","10952","10,803.46","Grounds Maintenance - Contract","130200474","05/01/2018","Environmental Maintenance","Arbor Scheme","R2075"
"Wolverhampton City Council","http://opendatacommunities.org/id/metropolitan-district-council/wolverhampton","700264","Acorn Environmental Mgt Group Limited","10977","133.32","Grounds Maintenance - Contract","130202064","31/01/2018","Environmental Maintenance","Arbor Scheme","R2075"
"Wolverhampton City Council","http://opendatacommunities.org/id/metropolitan-district-council/wolverhampton","700264","Acorn Environmental Mgt Group Limited","10894","1,283.30","Grounds Maintenance - Contract","130200596","10/01/2018","Environmental Maintenance","Arbor Scheme","R2075"
"Wolverhampton City Council","http://opendatacommunities.org/id/metropolitan-district-council/wolverhampton","700264","Acorn Environmental Mgt Group Limited","11006","1,224.70","Grounds Maintenance - Contract","130202671","31/01/2018","Environmental Maintenance","Arbor Scheme","R2075"
"Wolverhampton City Council","http://opendatacommunities.org/id/metropolitan-district-council/wolverhampton","700341","Acs Business Supplies Limited","SINV00421825","322.80","Stationery","130201042","19/01/2018","Landscape","Landscape","R4308"
"Wolverhampton City Council","http://opendatacommunities.org/id/metropolitan-district-council/wolverhampton","700341","Acs Business Supplies Limited","SINV00420411","35.94","Stationery","130199435","12/01/2018","Healthier Places Service","Healthy Lifestyles Team","R4308"
"Wolverhampton City Council","http://opendatacommunities.org/id/metropolitan-district-council/wolverhampton","700341","Acs Business Supplies Limited","SINV00421826","3.84","Stationery","130201043","17/01/2018","Democratic Services","Register Office","R4308"
"Wolverhampton City Council","http://opendatacommunities.org/id/metropolitan-district-council/wolverhampton","700341","Acs Business Supplies Limited","SINV00421826","4.98","Stationery","130201043","17/01/2018","Democratic Services","Register Office","R4308"
"Wolverhampton City Council","http://opendatacommunities.org/id/metropolitan-district-council/wolverhampton","700341","Acs Business Supplies Limited","SINV00421826","77.37","Stationery","130201043","17/01/2018","Democratic Services","Register Office","R4308"
"Wolverhampton City Council","http://opendatacommunities.org/id/metropolitan-district-council/wolverhampton","700341","Acs Business Supplies Limited","SINV00421394","41.45","Stationery","130201033","17/01/2018","Looked After Children","Fostering Team & Allowances","R4308"
"Wolverhampton City Council","http://opendatacommunities.org/id/metropolitan-district-council/wolverhampton","700341","Acs Business Supplies Limited","SINV00412493","145.87","Stationery","130203267","31/01/2018","Adult Education","Service Wide","R4308"
"Wolverhampton City Council","http://opendatacommunities.org/id/metropolitan-district-council/wolverhampton","700341","Acs Business Supplies Limited","SINV00412493","3.50","Stationery","130203267","31/01/2018","Adult Education","Service Wide","R4308"
"Wolverhampton City Council","http://opendatacommunities.org/id/metropolitan-district-council/wolverhampton","700341","Acs Business Supplies Limited","SINV00420733","7.55","Stationery","130199436","31/01/2018","Visitor Economy","Northicote Farm","R4308"
"Wolverhampton City Council","http://opendatacommunities.org/id/metropolitan-district-council/wolverhampton","700341","Acs Business Supplies Limited","SINV00420733","14.66","Stationery","130199436","31/01/2018","Visitor Economy","Northicote Farm","R4308"
"Wolverhampton City Council","http://opendatacommunities.org/id/metropolitan-district-council/wolverhampton","700341","Acs Business Supplies Limited","SINV00422602","6.69","Stationery","130201839","31/01/2018","Fleet Services","Passenger Transport - General","R4308"
"Wolverhampton City Council","http://opendatacommunities.org/id/metropolitan-district-council/wolverhampton","700341","Acs Business Supplies Limited","SCRN00051992","-6.69","Stationery","130203161","31/01/2018","Fleet Services","Passenger Transport - General","R4308"
"Wolverhampton City Council","http://opendatacommunities.org/id/metropolitan-district-council/wolverhampton","700341","Acs Business Supplies Limited","SINV00422067","332.24","Stationery","130201303","24/01/2018","Catering","Education Catering - General Overheads","R4308"
"Wolverhampton City Council","http://opendatacommunities.org/id/metropolitan-district-council/wolverhampton","700341","Acs Business Supplies Limited","SINV00422067","76.32","Stationery","130201303","24/01/2018","Cleaning","Cleaning of Buildings - General","R4308"
"Wolverhampton City Council","http://opendatacommunities.org/id/metropolitan-district-council/wolverhampton","700341","Acs Business Supplies Limited","SINV00421823","0.71","Stationery","130201040","26/01/2018","Welfare Rights & Financial Assessment","Macmillan Welfare Rights Service","R4308"
"Wolverhampton City Council","http://opendatacommunities.org/id/metropolitan-district-council/wolverhampton","700341","Acs Business Supplies Limited","SINV00421823","0.81","Stationery","130201040","26/01/2018","Welfare Rights & Financial Assessment","Macmillan Welfare Rights Service","R4308"
"Wolverhampton City Council","http://opendatacommunities.org/id/metropolitan-district-council/wolverhampton","700341","Acs Business Supplies Limited","SINV00421823","14.82","Stationery","130201040","26/01/2018","Welfare Rights & Financial Assessment","Macmillan Welfare Rights Service","R4308"
"Wolverhampton City Council","http://opendatacommunities.org/id/metropolitan-district-council/wolverhampton","700341","Acs Business Supplies Limited","SINV00421823","1.91","Stationery","130201040","26/01/2018","Welfare Rights & Financial Assessment","Macmillan Welfare Rights Service","R4308"
"Wolverhampton City Council","http://opendatacommunities.org/id/metropolitan-district-council/wolverhampton","700341","Acs Business Supplies Limited","SINV00421823","21.49","Stationery","130201040","26/01/2018","Welfare Rights & Financial Assessment","Macmillan Welfare Rights Service","R4308"
"Wolverhampton City Council","http://opendatacommunities.org/id/metropolitan-district-council/wolverhampton","700341","Acs Business Supplies Limited","SINV00421823","7.13","Stationery","130201040","26/01/2018","Welfare Rights & Financial Assessment","Macmillan Welfare Rights Service","R4308"
"Wolverhampton City Council","http://opendatacommunities.org/id/metropolitan-district-council/wolverhampton","700341","Acs Business Supplies Limited","SINV00421823","11.40","Stationery","130201040","26/01/2018","Welfare Rights & Financial Assessment","Macmillan Welfare Rights Service","R4308"
"Wolverhampton City Council","http://opendatacommunities.org/id/metropolitan-district-council/wolverhampton","700341","Acs Business Supplies Limited","SINV00419668","34.99","Stationery","130199434","03/01/2018","Safeguarding","Court of Protection, Funerals and Protection of Property","R4308"
"Wolverhampton City Council","http://opendatacommunities.org/id/metropolitan-district-council/wolverhampton","700341","Acs Business Supplies Limited","SINV00417416","36.82","Stationery","130198148","05/01/2018","Bereavement Services","Cemeteries","R4308"
"Wolverhampton City Council","http://opendatacommunities.org/id/metropolitan-district-council/wolverhampton","700341","Acs Business Supplies Limited","SINV00417416","35.91","Stationery","130198148","05/01/2018","Bereavement Services","Cemeteries","R4308"
"Wolverhampton City Council","http://opendatacommunities.org/id/metropolitan-district-council/wolverhampton","700341","Acs Business Supplies Limited","SINV00417416","11.70","Stationery","130198148","05/01/2018","Bereavement Services","Cemeteries","R4308"
"Wolverhampton City Council","http://opendatacommunities.org/id/metropolitan-district-council/wolverhampton","700341","Acs Business Supplies Limited","SINV00420735","186.75","Stationery","130199438","10/01/2018","Parking Services","Car Parks Operational Staff","R4308"
"Wolverhampton City Council","http://opendatacommunities.org/id/metropolitan-district-council/wolverhampton","700341","Acs Business Supplies Limited","SINV00421031","9.99","Stationery","130200477","12/01/2018","Bereavement Services","Cemeteries","R4308"
"Wolverhampton City Council","http://opendatacommunities.org/id/metropolitan-district-council/wolverhampton","700341","Acs Business Supplies Limited","SINV00421031","9.17","Stationery","130200477","12/01/2018","Bereavement Services","Cemeteries","R4308"
"Wolverhampton City Council","http://opendatacommunities.org/id/metropolitan-district-council/wolverhampton","700341","Acs Business Supplies Limited","SINV00417890","173.94","Stationery","130198156","12/01/2018","Standards and Vulnerable Pupils","SEN Sensory Inclusion","R4308"
"Wolverhampton City Council","http://opendatacommunities.org/id/metropolitan-district-council/wolverhampton","700341","Acs Business Supplies Limited","SINV00421392","25.00","Stationery","130201032","17/01/2018","Fleet Services","Passenger Transport - General","R4308"
"Wolverhampton City Council","http://opendatacommunities.org/id/metropolitan-district-council/wolverhampton","700341","Acs Business Supplies Limited","SINV00421821","20.32","Stationery","130201038","17/01/2018","Early Intervention","EIP Locality 7 � Low Hill","R4308"
"Wolverhampton City Council","http://opendatacommunities.org/id/metropolitan-district-council/wolverhampton","700341","Acs Business Supplies Limited","SINV00421821","3.84","Stationery","130201038","17/01/2018","Early Intervention","EIP Locality 7 � Low Hill","R4308"
"Wolverhampton City Council","http://opendatacommunities.org/id/metropolitan-district-council/wolverhampton","700341","Acs Business Supplies Limited","SINV00421821","38.70","Stationery","130201038","17/01/2018","Early Intervention","EIP Locality 7 � Low Hill","R4308"
"Wolverhampton City Council","http://opendatacommunities.org/id/metropolitan-district-council/wolverhampton","700341","Acs Business Supplies Limited","SINV00421821","1.98","Stationery","130201038","17/01/2018","Early Intervention","EIP Locality 7 � Low Hill","R4308"
"Wolverhampton City Council","http://opendatacommunities.org/id/metropolitan-district-council/wolverhampton","700341","Acs Business Supplies Limited","SINV00421821","59.28","Stationery","130201038","17/01/2018","Early Intervention","EIP Locality 7 � Low Hill","R4308"
"Wolverhampton City Council","http://opendatacommunities.org/id/metropolitan-district-council/wolverhampton","700341","Acs Business Supplies Limited","SINV00421820","59.19","Stationery","130201037","17/01/2018","Specialist Support","Vulnerable Young Persons Team","R4308"
"Wolverhampton City Council","http://opendatacommunities.org/id/metropolitan-district-council/wolverhampton","700341","Acs Business Supplies Limited","SINV00422600","9.38","Stationery","130201837","31/01/2018","Landscape","Landscape","R4308"
"Wolverhampton City Council","http://opendatacommunities.org/id/metropolitan-district-council/wolverhampton","700341","Acs Business Supplies Limited","SINV00422604","96.10","Stationery","130201841","31/01/2018","Commercial Services","Corporate Procurement Unit","R4308"
"Wolverhampton City Council","http://opendatacommunities.org/id/metropolitan-district-council/wolverhampton","700341","Acs Business Supplies Limited","SINV00415528","37.20","Stationery","130197032","31/01/2018","Looked After Children","Looked After Team 1","R4308"
"Wolverhampton City Council","http://opendatacommunities.org/id/metropolitan-district-council/wolverhampton","700341","Acs Business Supplies Limited","SINV00415528","18.10","Stationery","130197032","31/01/2018","Looked After Children","Looked After Team 1","R4308"
"Wolverhampton City Council","http://opendatacommunities.org/id/metropolitan-district-council/wolverhampton","700341","Acs Business Supplies Limited","SINV00415528","16.80","Stationery","130197032","31/01/2018","Looked After Children","Looked After Team 1","R4308"
"Wolverhampton City Council","http://opendatacommunities.org/id/metropolitan-district-council/wolverhampton","700341","Acs Business Supplies Limited","SINV00415528","35.84","Stationery","130197032","31/01/2018","Looked After Children","Looked After Team 1","R4308"
"Wolverhampton City Council","http://opendatacommunities.org/id/metropolitan-district-council/wolverhampton","700341","Acs Business Supplies Limited","SINV00415528","13.00","Stationery","130197032","31/01/2018","Looked After Children","Looked After Team 1","R4308"
"Wolverhampton City Council","http://opendatacommunities.org/id/metropolitan-district-council/wolverhampton","700341","Acs Business Supplies Limited","SINV00415528","4.05","Stationery","130197032","31/01/2018","Looked After Children","Looked After Team 1","R4308"
"Wolverhampton City Council","http://opendatacommunities.org/id/metropolitan-district-council/wolverhampton","700341","Acs Business Supplies Limited","SINV00415528","3.80","Stationery","130197032","31/01/2018","Looked After Children","Looked After Team 1","R4308"
"Wolverhampton City Council","http://opendatacommunities.org/id/metropolitan-district-council/wolverhampton","700341","Acs Business Supplies Limited","SINV00410700","415.38","Stationery","130203260","31/01/2018","Legal Services","Legal Services","R4308"
"Wolverhampton City Council","http://opendatacommunities.org/id/metropolitan-district-council/wolverhampton","700341","Acs Business Supplies Limited","SINV00411351","275.76","Stationery","130194542","03/01/2018","Service Director Adults","Service Director Older People","R4308"
"Wolverhampton City Council","http://opendatacommunities.org/id/metropolitan-district-council/wolverhampton","700341","Acs Business Supplies Limited","SINV00420736","3.96","Stationery","130199439","10/01/2018","Early Intervention","EIP Locality 2 � Bilston/Rocket Pool","R4308"
"Wolverhampton City Council","http://opendatacommunities.org/id/metropolitan-district-council/wolverhampton","700341","Acs Business Supplies Limited","SINV00420736","13.36","Stationery","130199439","10/01/2018","Early Intervention","EIP Locality 2 � Bilston/Rocket Pool","R4308"
"Wolverhampton City Council","http://opendatacommunities.org/id/metropolitan-district-council/wolverhampton","700341","Acs Business Supplies Limited","SINV00420736","9.05","Stationery","130199439","10/01/2018","Early Intervention","EIP Locality 2 � Bilston/Rocket Pool","R4308"
"Wolverhampton City Council","http://opendatacommunities.org/id/metropolitan-district-council/wolverhampton","700341","Acs Business Supplies Limited","SINV00420736","1.92","Stationery","130199439","10/01/2018","Early Intervention","EIP Locality 2 � Bilston/Rocket Pool","R4308"
"Wolverhampton City Council","http://opendatacommunities.org/id/metropolitan-district-council/wolverhampton","700341","Acs Business Supplies Limited","SINV00420736","0.98","Stationery","130199439","10/01/2018","Early Intervention","EIP Locality 2 � Bilston/Rocket Pool","R4308"
"Wolverhampton City Council","http://opendatacommunities.org/id/metropolitan-district-council/wolverhampton","700341","Acs Business Supplies Limited","SINV00420736","11.72","Stationery","130199439","10/01/2018","Early Intervention","EIP Locality 2 � Bilston/Rocket Pool","R4308"
"Wolverhampton City Council","http://opendatacommunities.org/id/metropolitan-district-council/wolverhampton","700341","Acs Business Supplies Limited","SINV00420736","23.96","Stationery","130199439","10/01/2018","Early Intervention","EIP Locality 2 � Bilston/Rocket Pool","R4308"
"Wolverhampton City Council","http://opendatacommunities.org/id/metropolitan-district-council/wolverhampton","700341","Acs Business Supplies Limited","SINV00420736","0.35","Stationery","130199439","10/01/2018","Early Intervention","EIP Locality 2 � Bilston/Rocket Pool","R4308"
"Wolverhampton City Council","http://opendatacommunities.org/id/metropolitan-district-council/wolverhampton","700341","Acs Business Supplies Limited","SINV00422069","28.49","Equipment - Purchase","130201305","24/01/2018","Strategic Organisation Development","Community Recreation Community Centre","R4000"
"Wolverhampton City Council","http://opendatacommunities.org/id/metropolitan-district-council/wolverhampton","700341","Acs Business Supplies Limited","SINV00421395","66.45","Stationery","130201034","24/01/2018","Youth Offending","Youth Offending Team","R4308"
"Wolverhampton City Council","http://opendatacommunities.org/id/metropolitan-district-council/wolverhampton","700341","Acs Business Supplies Limited","SINV00411566","221.91","Stationery","130203264","26/01/2018","Fleet Services","Fleet Management","R4308"
"Wolverhampton City Council","http://opendatacommunities.org/id/metropolitan-district-council/wolverhampton","700341","Acs Business Supplies Limited","SCRN00051777","-119.96","Furniture","130202385","19/01/2018","Adult Education","Alan Garner Centre Building","R4004"
"Wolverhampton City Council","http://opendatacommunities.org/id/metropolitan-district-council/wolverhampton","700341","Acs Business Supplies Limited","SINV00421030","28.49","Stationery","130200476","12/01/2018","Looked After Children","Panel Expenses Fostering & Adoption","R4308"
"Wolverhampton City Council","http://opendatacommunities.org/id/metropolitan-district-council/wolverhampton","700341","Acs Business Supplies Limited","SINV00421030","9.02","Stationery","130200476","12/01/2018","Looked After Children","Panel Expenses Fostering & Adoption","R4308"
"Wolverhampton City Council","http://opendatacommunities.org/id/metropolitan-district-council/wolverhampton","700341","Acs Business Supplies Limited","SCRN00050956","-4.55","Stationery","130197946","17/01/2018","Strategic Director Place","Business Manager - Place","R4308"
"Wolverhampton City Council","http://opendatacommunities.org/id/metropolitan-district-council/wolverhampton","700341","Acs Business Supplies Limited","SINV00421822","44.46","Stationery","130201039","17/01/2018","Child Protection","CIN/CP Social Work Unit - Area 5","R4308"
"Wolverhampton City Council","http://opendatacommunities.org/id/metropolitan-district-council/wolverhampton","700341","Acs Business Supplies Limited","SINV00421822","20.32","Stationery","130201039","17/01/2018","Child Protection","CIN/CP Social Work Unit - Area 5","R4308"
"Wolverhampton City Council","http://opendatacommunities.org/id/metropolitan-district-council/wolverhampton","700341","Acs Business Supplies Limited","SINV00410702","351.13","Stationery","130203262","31/01/2018","Legal Services","Legal Services","R4308"
"Wolverhampton City Council","http://opendatacommunities.org/id/metropolitan-district-council/wolverhampton","700341","Acs Business Supplies Limited","SINV00422601","5.76","Stationery","130201838","31/01/2018","Revenues & Benefits","Revenues","R4308"
"Wolverhampton City Council","http://opendatacommunities.org/id/metropolitan-district-council/wolverhampton","700341","Acs Business Supplies Limited","SINV00422601","3.84","Stationery","130201838","31/01/2018","Revenues & Benefits","Revenues","R4308"
"Wolverhampton City Council","http://opendatacommunities.org/id/metropolitan-district-council/wolverhampton","700341","Acs Business Supplies Limited","SINV00422601","13.16","Stationery","130201838","31/01/2018","Revenues & Benefits","Revenues","R4308"
"Wolverhampton City Council","http://opendatacommunities.org/id/metropolitan-district-council/wolverhampton","700341","Acs Business Supplies Limited","SINV00422601","42.00","Stationery","130201838","31/01/2018","Revenues & Benefits","Revenues","R4308"
"Wolverhampton City Council","http://opendatacommunities.org/id/metropolitan-district-council/wolverhampton","700341","Acs Business Supplies Limited","SINV00422601","17.58","Stationery","130201838","31/01/2018","Revenues & Benefits","Revenues","R4308"
"Wolverhampton City Council","http://opendatacommunities.org/id/metropolitan-district-council/wolverhampton","700341","Acs Business Supplies Limited","SINV00422601","53.76","Stationery","130201838","31/01/2018","Revenues & Benefits","Revenues","R4308"
"Wolverhampton City Council","http://opendatacommunities.org/id/metropolitan-district-council/wolverhampton","700341","Acs Business Supplies Limited","SINV00422601","3.82","Stationery","130201838","31/01/2018","Revenues & Benefits","Revenues","R4308"
"Wolverhampton City Council","http://opendatacommunities.org/id/metropolitan-district-council/wolverhampton","700341","Acs Business Supplies Limited","SINV00422601","16.36","Stationery","130201838","31/01/2018","Revenues & Benefits","Revenues","R4308"
"Wolverhampton City Council","http://opendatacommunities.org/id/metropolitan-district-council/wolverhampton","700341","Acs Business Supplies Limited","SINV00411967","19.50","Stationery","130203266","31/01/2018","Environmental Maintenance","Ground Maintenance East","R4308"
"Wolverhampton City Council","http://opendatacommunities.org/id/metropolitan-district-council/wolverhampton","700341","Acs Business Supplies Limited","SINV00410703","74.10","Stationery","130203263","31/01/2018","Child Protection","CIN/CP Social Work Unit - Area 7","R4308"
"Wolverhampton City Council","http://opendatacommunities.org/id/metropolitan-district-council/wolverhampton","700341","Acs Business Supplies Limited","SINV00422599","22.65","Stationery","130201836","31/01/2018","Strategic Organisation Development","Community Recreation Community Centre","R4308"
"Wolverhampton City Council","http://opendatacommunities.org/id/metropolitan-district-council/wolverhampton","700341","Acs Business Supplies Limited","SINV0038568","202.18","Stationery","130194288","24/01/2018","Carer Support","Carers Support","R4308"
"Wolverhampton City Council","http://opendatacommunities.org/id/metropolitan-district-council/wolverhampton","700341","Acs Business Supplies Limited","SINV00418941","24.24","Stationery","130199380","03/01/2018","Democratic Services","Register Office","R4308"
"Wolverhampton City Council","http://opendatacommunities.org/id/metropolitan-district-council/wolverhampton","700341","Acs Business Supplies Limited","SINV00420734","6.72","Stationery","130199437","10/01/2018","Adult Education","Service Wide","R4308"
"Wolverhampton City Council","http://opendatacommunities.org/id/metropolitan-district-council/wolverhampton","700341","Acs Business Supplies Limited","SINV00420734","25.60","Stationery","130199437","10/01/2018","Adult Education","Service Wide","R4308"
"Wolverhampton City Council","http://opendatacommunities.org/id/metropolitan-district-council/wolverhampton","700341","Acs Business Supplies Limited","SINV00420734","14.26","Stationery","130199437","10/01/2018","Adult Education","Service Wide","R4308"
"Wolverhampton City Council","http://opendatacommunities.org/id/metropolitan-district-council/wolverhampton","700341","Acs Business Supplies Limited","SINV00420734","10.05","Stationery","130199437","10/01/2018","Adult Education","Service Wide","R4308"
"Wolverhampton City Council","http://opendatacommunities.org/id/metropolitan-district-council/wolverhampton","700341","Acs Business Supplies Limited","SINV00420734","19.99","Stationery","130199437","10/01/2018","Adult Education","Service Wide","R4308"
"Wolverhampton City Council","http://opendatacommunities.org/id/metropolitan-district-council/wolverhampton","700341","Acs Business Supplies Limited","SINV00420734","59.97","Stationery","130199437","10/01/2018","Adult Education","Service Wide","R4308"
"Wolverhampton City Council","http://opendatacommunities.org/id/metropolitan-district-council/wolverhampton","700341","Acs Business Supplies Limited","SINV00420734","29.00","Stationery","130199437","10/01/2018","Adult Education","Service Wide","R4308"
"Wolverhampton City Council","http://opendatacommunities.org/id/metropolitan-district-council/wolverhampton","700341","Acs Business Supplies Limited","SINV00420734","35.84","Stationery","130199437","10/01/2018","Adult Education","Service Wide","R4308"
"Wolverhampton City Council","http://opendatacommunities.org/id/metropolitan-district-council/wolverhampton","700341","Acs Business Supplies Limited","SINV00417894","145.12","Stationery","130198160","10/01/2018","Adult Education","Service Wide","R4308"
"Wolverhampton City Council","http://opendatacommunities.org/id/metropolitan-district-council/wolverhampton","700341","Acs Business Supplies Limited","SINV00391882","31.58","Stationery","130180344","05/01/2018","Looked After Children","Panel Expenses Fostering & Adoption","R4308"
"Wolverhampton City Council","http://opendatacommunities.org/id/metropolitan-district-council/wolverhampton","700341","Acs Business Supplies Limited","SINV00391882","-31.58","Stationery","130180344","05/01/2018","Looked After Children","Panel Expenses Fostering & Adoption","R4308"
"Wolverhampton City Council","http://opendatacommunities.org/id/metropolitan-district-council/wolverhampton","700341","Acs Business Supplies Limited","SINV00391882","22.56","Stationery","130180344","05/01/2018","Looked After Children","Panel Expenses Fostering & Adoption","R4308"
"Wolverhampton City Council","http://opendatacommunities.org/id/metropolitan-district-council/wolverhampton","700341","Acs Business Supplies Limited","SINV00391882","9.02","Stationery","130180344","05/01/2018","Looked After Children","Panel Expenses Fostering & Adoption","R4308"
"Wolverhampton City Council","http://opendatacommunities.org/id/metropolitan-district-council/wolverhampton","700341","Acs Business Supplies Limited","SINV00411888","545.10","Stationery","130203265","26/01/2018","Governance Services","Scrutiny","R4308"
"Wolverhampton City Council","http://opendatacommunities.org/id/metropolitan-district-council/wolverhampton","700341","Acs Business Supplies Limited","SINV00417421","7.76","Stationery","130198153","24/01/2018","Youth Offending","Youth Offending Team","R4308"
"Wolverhampton City Council","http://opendatacommunities.org/id/metropolitan-district-council/wolverhampton","700341","Acs Business Supplies Limited","SINV00417421","1.98","Stationery","130198153","24/01/2018","Youth Offending","Youth Offending Team","R4308"
"Wolverhampton City Council","http://opendatacommunities.org/id/metropolitan-district-council/wolverhampton","700341","Acs Business Supplies Limited","SINV00417421","28.52","Stationery","130198153","24/01/2018","Youth Offending","Youth Offending Team","R4308"
"Wolverhampton City Council","http://opendatacommunities.org/id/metropolitan-district-council/wolverhampton","700341","Acs Business Supplies Limited","SINV00417421","1.14","Stationery","130198153","24/01/2018","Youth Offending","Youth Offending Team","R4308"
"Wolverhampton City Council","http://opendatacommunities.org/id/metropolitan-district-council/wolverhampton","700341","Acs Business Supplies Limited","SINV00417421","40.08","Stationery","130198153","24/01/2018","Youth Offending","Youth Offending Team","R4308"
"Wolverhampton City Council","http://opendatacommunities.org/id/metropolitan-district-council/wolverhampton","700341","Acs Business Supplies Limited","SINV00422068","99.95","Stationery","130201304","24/01/2018","Parking Services","Parking Enforcement","R4308"
"Wolverhampton City Council","http://opendatacommunities.org/id/metropolitan-district-council/wolverhampton","700341","Acs Business Supplies Limited","SINV00422068","54.95","Stationery","130201304","24/01/2018","Parking Services","Parking Enforcement","R4308"
"Wolverhampton City Council","http://opendatacommunities.org/id/metropolitan-district-council/wolverhampton","700341","Acs Business Supplies Limited","SINV00422068","5.99","Stationery","130201304","24/01/2018","Parking Services","Parking Enforcement","R4308"
"Wolverhampton City Council","http://opendatacommunities.org/id/metropolitan-district-council/wolverhampton","700341","Acs Business Supplies Limited","SINV00422068","0.95","Stationery","130201304","24/01/2018","Parking Services","Parking Enforcement","R4308"
"Wolverhampton City Council","http://opendatacommunities.org/id/metropolitan-district-council/wolverhampton","700341","Acs Business Supplies Limited","SINV00407304","24.48","Stationery","130191709","10/01/2018","Strategic Organisation Development","Global Budgets","R4308"
"Wolverhampton City Council","http://opendatacommunities.org/id/metropolitan-district-council/wolverhampton","700341","Acs Business Supplies Limited","SCRN00051634","-24.48","Stationery","130200597","10/01/2018","Strategic Organisation Development","Global Budgets","R4308"
"Wolverhampton City Council","http://opendatacommunities.org/id/metropolitan-district-council/wolverhampton","700341","Acs Business Supplies Limited","SINV00419328","5.43","Stationery","130199433","03/01/2018","Legal Services","Legal Services","R4308"
"Wolverhampton City Council","http://opendatacommunities.org/id/metropolitan-district-council/wolverhampton","700341","Acs Business Supplies Limited","SINV00419328","44.97","Stationery","130199433","03/01/2018","Legal Services","Legal Services","R4308"
"Wolverhampton City Council","http://opendatacommunities.org/id/metropolitan-district-council/wolverhampton","700341","Acs Business Supplies Limited","SINV00419328","19.36","Stationery","130199433","03/01/2018","Legal Services","Legal Services","R4308"
"Wolverhampton City Council","http://opendatacommunities.org/id/metropolitan-district-council/wolverhampton","700341","Acs Business Supplies Limited","SINV00419328","19.36","Stationery","130199433","03/01/2018","Legal Services","Legal Services","R4308"
"Wolverhampton City Council","http://opendatacommunities.org/id/metropolitan-district-council/wolverhampton","700341","Acs Business Supplies Limited","SINV00419328","44.97","Stationery","130199433","03/01/2018","Legal Services","Legal Services","R4308"
"Wolverhampton City Council","http://opendatacommunities.org/id/metropolitan-district-council/wolverhampton","700341","Acs Business Supplies Limited","SINV00419667","34.99","Stationery","130200894","05/01/2018","Safeguarding","Court of Protection, Funerals and Protection of Property","R4308"
"Wolverhampton City Council","http://opendatacommunities.org/id/metropolitan-district-council/wolverhampton","700341","Acs Business Supplies Limited","SINV00421731","209.70","Stationery","130201035","19/01/2018","Adult Education","Foundation Studies Delivery Area","R4308"
"Wolverhampton City Council","http://opendatacommunities.org/id/metropolitan-district-council/wolverhampton","700341","Acs Business Supplies Limited","SINV00421029","12.99","Stationery","130200475","12/01/2018","Visitor Economy","Art Gallery Shop","R4308"
"Wolverhampton City Council","http://opendatacommunities.org/id/metropolitan-district-council/wolverhampton","700341","Acs Business Supplies Limited","SINV00421029","56.97","Stationery","130200475","12/01/2018","Visitor Economy","Bantock - Tea Rooms","R4308"
"Wolverhampton City Council","http://opendatacommunities.org/id/metropolitan-district-council/wolverhampton","700341","Acs Business Supplies Limited","SINV00421819","29.64","Stationery","130201036","17/01/2018","Facilities Management","Civic Centre","R4308"
"Wolverhampton City Council","http://opendatacommunities.org/id/metropolitan-district-council/wolverhampton","700341","Acs Business Supplies Limited","SINV00421391","2.93","Stationery","130201031","17/01/2018","Adults Assessment & Care Management SLC","Supporting Life Choices","R4308"
"Wolverhampton City Council","http://opendatacommunities.org/id/metropolitan-district-council/wolverhampton","700341","Acs Business Supplies Limited","SINV00421391","6.88","Stationery","130201031","17/01/2018","Adults Assessment & Care Management SLC","Supporting Life Choices","R4308"
"Wolverhampton City Council","http://opendatacommunities.org/id/metropolitan-district-council/wolverhampton","700341","Acs Business Supplies Limited","SINV00422598","94.31","Stationery","130203101","31/01/2018","Inclusion Support","Inclusion Support","R4308"
"Wolverhampton City Council","http://opendatacommunities.org/id/metropolitan-district-council/wolverhampton","700341","Acs Business Supplies Limited","SINV00419938","4.67","Stationery","130203268","31/01/2018","Independent Living Service","Independent Living Service","R4308"
"Wolverhampton City Council","http://opendatacommunities.org/id/metropolitan-district-council/wolverhampton","700341","Acs Business Supplies Limited","SINV00422603","4.54","Stationery","130201840","31/01/2018","Learning Disability Provider","Ernest Bold Court","R4308"
"Wolverhampton City Council","http://opendatacommunities.org/id/metropolitan-district-council/wolverhampton","700341","Acs Business Supplies Limited","SINV00422603","1.92","Stationery","130201840","31/01/2018","Learning Disability Provider","Ernest Bold Court","R4308"
"Wolverhampton City Council","http://opendatacommunities.org/id/metropolitan-district-council/wolverhampton","700341","Acs Business Supplies Limited","SINV00422603","2.88","Stationery","130201840","31/01/2018","Learning Disability Provider","Ernest Bold Court","R4308"
"Wolverhampton City Council","http://opendatacommunities.org/id/metropolitan-district-council/wolverhampton","700341","Acs Business Supplies Limited","SINV00421824","18.99","Stationery","130201041","31/01/2018","Visitor Economy","Northicote Farm","R4308"
"Wolverhampton City Council","http://opendatacommunities.org/id/metropolitan-district-council/wolverhampton","700341","Acs Business Supplies Limited","SINV00421824","29.99","Stationery","130201041","31/01/2018","Visitor Economy","Northicote Farm","R4308"
"Wolverhampton City Council","http://opendatacommunities.org/id/metropolitan-district-council/wolverhampton","700341","Acs Business Supplies Limited","SINV00421824","44.55","Stationery","130201041","31/01/2018","Visitor Economy","Northicote Farm","R4308"
"Wolverhampton City Council","http://opendatacommunities.org/id/metropolitan-district-council/wolverhampton","700341","Acs Business Supplies Limited","SINV00421824","68.97","Stationery","130201041","31/01/2018","Visitor Economy","Northicote Farm","R4308"
"Wolverhampton City Council","http://opendatacommunities.org/id/metropolitan-district-council/wolverhampton","700539","Activities 4 U","0331","60.00","Services - Supplies and Services to service users","130197033","24/01/2018","Older People Provider Services","Bradley Lodge Resource Centre","R4408"
"Wolverhampton City Council","http://opendatacommunities.org/id/metropolitan-district-council/wolverhampton","700539","Activities 4 U","0331","-60.00","Services - Supplies and Services to service users","130197033","24/01/2018","Older People Provider Services","Bradley Lodge Resource Centre","R4408"
"Wolverhampton City Council","http://opendatacommunities.org/id/metropolitan-district-council/wolverhampton","700539","Activities 4 U","0331","60.00","Services - Supplies and Services to service users","130197033","24/01/2018","Older People Provider Services","Bradley Lodge Resource Centre","R4408"
"Wolverhampton City Council","http://opendatacommunities.org/id/metropolitan-district-council/wolverhampton","700663","Partisip8/P Sicilia","737","1,620.00","TPP - Maintenance Contractor - General","190417137","31/01/2018","Transportation","Cycling Schemes - Bikeability","R5720"
"Wolverhampton City Council","http://opendatacommunities.org/id/metropolitan-district-council/wolverhampton","700737","Adreeja Chatterjee","2389","2,050.00","Services - Professional Fees","130202260","17/01/2018","Legal Services","Centralised External Legal Costs","R4400"
"Wolverhampton City Council","http://opendatacommunities.org/id/metropolitan-district-council/wolverhampton","700761","R Millard","000046","47.50","Services - Professional Fees","190417136","31/01/2018","Transportation","Advisory Road Markings and Disabled Bays","R4400"
"Wolverhampton City Council","http://opendatacommunities.org/id/metropolitan-district-council/wolverhampton","700770","Adt Fire And Security PLC","37279821-02","204.37","Fixtures and Fittings - R&M","130201306","19/01/2018","Bereavement Services","Cemeteries","R2502"
"Wolverhampton City Council","http://opendatacommunities.org/id/metropolitan-district-council/wolverhampton","700770","Adt Fire And Security PLC","36803044-02","56.00","Fixtures and Fittings - R&M","130202674","24/01/2018","Facilities Management","Caretakers Community Centre","R2502"
"Wolverhampton City Council","http://opendatacommunities.org/id/metropolitan-district-council/wolverhampton","700770","Adt Fire And Security PLC","36778515-02","763.73","Fixtures and Fittings - R&M","130199159","19/01/2018","Maintenance Programme","Centralised R&M","R2502"
"Wolverhampton City Council","http://opendatacommunities.org/id/metropolitan-district-council/wolverhampton","700770","Adt Fire And Security PLC","37308789-02","401.43","Fixtures and Fittings - R&M","130203473","26/01/2018","Facilities Management","Caretakers Community Centre","R2502"
"Wolverhampton City Council","http://opendatacommunities.org/id/metropolitan-district-council/wolverhampton","700891","Adventure Kit UK Limited","3357","660.00","Equipment - Purchase","130199160","19/01/2018","School Planning & Resources","Towers Outdoor Education Centre","R4000"
"Wolverhampton City Council","http://opendatacommunities.org/id/metropolitan-district-council/wolverhampton","700891","Adventure Kit UK Limited","3357","240.00","Equipment - Purchase","130199160","19/01/2018","School Planning & Resources","Towers Outdoor Education Centre","R4000"
"Wolverhampton City Council","http://opendatacommunities.org/id/metropolitan-district-council/wolverhampton","700891","Adventure Kit UK Limited","3357","6.00","Equipment - Purchase","130199160","19/01/2018","School Planning & Resources","Towers Outdoor Education Centre","R4000"
"Wolverhampton City Council","http://opendatacommunities.org/id/metropolitan-district-council/wolverhampton","700891","Adventure Kit UK Limited","3361","1,515.00","Equipment - Purchase","130199440","03/01/2018","School Planning & Resources","Towers Outdoor Education Centre","R4000"
"Wolverhampton City Council","http://opendatacommunities.org/id/metropolitan-district-council/wolverhampton","700891","Adventure Kit UK Limited","3361","-1,515.00","Equipment - Purchase","130199440","03/01/2018","School Planning & Resources","Towers Outdoor Education Centre","R4000"
"Wolverhampton City Council","http://opendatacommunities.org/id/metropolitan-district-council/wolverhampton","700891","Adventure Kit UK Limited","3361","979.00","Equipment - Purchase","130199440","03/01/2018","School Planning & Resources","Towers Outdoor Education Centre","R4000"
"Wolverhampton City Council","http://opendatacommunities.org/id/metropolitan-district-council/wolverhampton","700891","Adventure Kit UK Limited","3361","536.00","Equipment - Purchase","130199440","03/01/2018","School Planning & Resources","Towers Outdoor Education Centre","R4000"
"Wolverhampton City Council","http://opendatacommunities.org/id/metropolitan-district-council/wolverhampton","700979","Af Blakemore/Blakemore Foodservice","5618497","60.67","Provisions (Resale)","130196208","10/01/2018","Adult Education","Caf�","R4102"
"Wolverhampton City Council","http://opendatacommunities.org/id/metropolitan-district-council/wolverhampton","700979","Af Blakemore/Blakemore Foodservice","5618511","124.88","Provisions (Resale)","130195839","10/01/2018","Adult Education","Caf�","R4102"
"Wolverhampton City Council","http://opendatacommunities.org/id/metropolitan-district-council/wolverhampton","700979","Af Blakemore/Blakemore Foodservice","5618511","-124.88","Provisions (Resale)","130195839","10/01/2018","Adult Education","Caf�","R4102"
"Wolverhampton City Council","http://opendatacommunities.org/id/metropolitan-district-council/wolverhampton","700979","Af Blakemore/Blakemore Foodservice","5618511","91.85","Provisions (Resale)","130195839","10/01/2018","Adult Education","Caf�","R4102"
"Wolverhampton City Council","http://opendatacommunities.org/id/metropolitan-district-council/wolverhampton","700979","Af Blakemore/Blakemore Foodservice","5618511","33.03","Provisions (Resale)","130195839","10/01/2018","Adult Education","Caf�","R4102"
"Wolverhampton City Council","http://opendatacommunities.org/id/metropolitan-district-council/wolverhampton","700979","Af Blakemore/Blakemore Foodservice","WCC000325","46,090.41","Provisions (Resale)","130202902","26/01/2018","Catering","Education Catering - General Overheads","R4102"
"Wolverhampton City Council","http://opendatacommunities.org/id/metropolitan-district-council/wolverhampton","700979","Af Blakemore/Blakemore Foodservice","WCC000325","-46,090.41","Provisions (Resale)","130202902","26/01/2018","Catering","Education Catering - General Overheads","R4102"
"Wolverhampton City Council","http://opendatacommunities.org/id/metropolitan-district-council/wolverhampton","700979","Af Blakemore/Blakemore Foodservice","WCC000325","40,772.61","Provisions (Resale)","130202902","26/01/2018","Catering","Education Catering - General Overheads","R4102"
"Wolverhampton City Council","http://opendatacommunities.org/id/metropolitan-district-council/wolverhampton","700979","Af Blakemore/Blakemore Foodservice","WCC000325","5,317.80","Provisions (Resale)","130202902","26/01/2018","Catering","Education Catering - General Overheads","R4102"
"Wolverhampton City Council","http://opendatacommunities.org/id/metropolitan-district-council/wolverhampton","700979","Af Blakemore/Blakemore Foodservice","5692662","404.07","Provisions (Resale)","130202914","26/01/2018","Visitor Economy","Bantock - Tea Rooms","R4102"
"Wolverhampton City Council","http://opendatacommunities.org/id/metropolitan-district-council/wolverhampton","700979","Af Blakemore/Blakemore Foodservice","5692662","-404.07","Provisions (Resale)","130202914","26/01/2018","Visitor Economy","Bantock - Tea Rooms","R4102"
"Wolverhampton City Council","http://opendatacommunities.org/id/metropolitan-district-council/wolverhampton","700979","Af Blakemore/Blakemore Foodservice","5692662","291.42","Provisions (Resale)","130202914","26/01/2018","Visitor Economy","Bantock - Tea Rooms","R4102"
"Wolverhampton City Council","http://opendatacommunities.org/id/metropolitan-district-council/wolverhampton","700979","Af Blakemore/Blakemore Foodservice","5692662","112.65","Provisions (Resale)","130202914","26/01/2018","Visitor Economy","Bantock - Tea Rooms","R4102"
"Wolverhampton City Council","http://opendatacommunities.org/id/metropolitan-district-council/wolverhampton","700979","Af Blakemore/Blakemore Foodservice","5722734","201.98","Provisions (Resale)","130202930","26/01/2018","Visitor Economy","Bantock - Tea Rooms","R4102"
"Wolverhampton City Council","http://opendatacommunities.org/id/metropolitan-district-council/wolverhampton","700979","Af Blakemore/Blakemore Foodservice","5722734","-201.98","Provisions (Resale)","130202930","26/01/2018","Visitor Economy","Bantock - Tea Rooms","R4102"
"Wolverhampton City Council","http://opendatacommunities.org/id/metropolitan-district-council/wolverhampton","700979","Af Blakemore/Blakemore Foodservice","5722734","114.30","Provisions (Resale)","130202930","26/01/2018","Visitor Economy","Bantock - Tea Rooms","R4102"
"Wolverhampton City Council","http://opendatacommunities.org/id/metropolitan-district-council/wolverhampton","700979","Af Blakemore/Blakemore Foodservice","5722734","87.68","Provisions (Resale)","130202930","26/01/2018","Visitor Economy","Bantock - Tea Rooms","R4102"
"Wolverhampton City Council","http://opendatacommunities.org/id/metropolitan-district-council/wolverhampton","700979","Af Blakemore/Blakemore Foodservice","5694824","272.85","Provisions (Resale)","130202916","26/01/2018","Adult Education","Caf�","R4102"
"Wolverhampton City Council","http://opendatacommunities.org/id/metropolitan-district-council/wolverhampton","700979","Af Blakemore/Blakemore Foodservice","5694824","-272.85","Provisions (Resale)","130202916","26/01/2018","Adult Education","Caf�","R4102"
"Wolverhampton City Council","http://opendatacommunities.org/id/metropolitan-district-council/wolverhampton","700979","Af Blakemore/Blakemore Foodservice","5694824","211.88","Provisions (Resale)","130202916","26/01/2018","Adult Education","Caf�","R4102"
"Wolverhampton City Council","http://opendatacommunities.org/id/metropolitan-district-council/wolverhampton","700979","Af Blakemore/Blakemore Foodservice","5694824","60.97","Provisions (Resale)","130202916","26/01/2018","Adult Education","Caf�","R4102"
"Wolverhampton City Council","http://opendatacommunities.org/id/metropolitan-district-council/wolverhampton","700979","Af Blakemore/Blakemore Foodservice","5694837","36.10","Provisions (Resale)","130202917","24/01/2018","Adult Education","Caf�","R4102"
"Wolverhampton City Council","http://opendatacommunities.org/id/metropolitan-district-council/wolverhampton","700979","Af Blakemore/Blakemore Foodservice","5721032","6.21","Provisions (Resale)","130202928","24/01/2018","Adult Education","Caf�","R4102"
"Wolverhampton City Council","http://opendatacommunities.org/id/metropolitan-district-council/wolverhampton","700979","Af Blakemore/Blakemore Foodservice","5743785","-31.82","Provisions (Not for resale)","130202944","24/01/2018","Older People Provider Services","Blakenhall Resource Centre","R4101"
"Wolverhampton City Council","http://opendatacommunities.org/id/metropolitan-district-council/wolverhampton","700979","Af Blakemore/Blakemore Foodservice","5697902","-41.27","Provisions (Resale)","130203163","26/01/2018","Adult Education","Caf�","R4102"
"Wolverhampton City Council","http://opendatacommunities.org/id/metropolitan-district-council/wolverhampton","700979","Af Blakemore/Blakemore Foodservice","5741761","-17.49","Provisions (Resale)","130202941","26/01/2018","Visitor Economy","Bantock - Tea Rooms","R4102"
"Wolverhampton City Council","http://opendatacommunities.org/id/metropolitan-district-council/wolverhampton","700979","Af Blakemore/Blakemore Foodservice","5741761","17.49","Provisions (Resale)","130202941","26/01/2018","Visitor Economy","Bantock - Tea Rooms","R4102"
"Wolverhampton City Council","http://opendatacommunities.org/id/metropolitan-district-council/wolverhampton","700979","Af Blakemore/Blakemore Foodservice","5741761","-17.49","Provisions (Resale)","130202941","26/01/2018","Visitor Economy","Bantock - Tea Rooms","R4102"
"Wolverhampton City Council","http://opendatacommunities.org/id/metropolitan-district-council/wolverhampton","700979","Af Blakemore/Blakemore Foodservice","WCC000338","1,053.38","Provisions (Not for resale)","130199449","17/01/2018","Leisure Services","WV Active Catering - Central","R4101"
"Wolverhampton City Council","http://opendatacommunities.org/id/metropolitan-district-council/wolverhampton","700979","Af Blakemore/Blakemore Foodservice","WCC000338","353.49","Provisions (Not for resale)","130199449","17/01/2018","Leisure Services","WV Active Catering - Central","R4101"
"Wolverhampton City Council","http://opendatacommunities.org/id/metropolitan-district-council/wolverhampton","700979","Af Blakemore/Blakemore Foodservice","5598422","1.85","Provisions (Resale)","130195835","17/01/2018","Visitor Economy","Art Gallery Tea Room","R4102"
"Wolverhampton City Council","http://opendatacommunities.org/id/metropolitan-district-council/wolverhampton","700979","Af Blakemore/Blakemore Foodservice","WCC000336","707.64","Provisions (Not for resale)","130199447","17/01/2018","Leisure Services","Bert Williams Leisure Centre Caf�","R4101"
"Wolverhampton City Council","http://opendatacommunities.org/id/metropolitan-district-council/wolverhampton","700979","Af Blakemore/Blakemore Foodservice","5746048","20.29","Provisions (Resale)","130202948","31/01/2018","Adult Education","Caf�","R4102"
"Wolverhampton City Council","http://opendatacommunities.org/id/metropolitan-district-council/wolverhampton","700979","Af Blakemore/Blakemore Foodservice","5745855","281.09","Provisions (Resale)","130202946","31/01/2018","Visitor Economy","Art Gallery Tea Room","R4102"
"Wolverhampton City Council","http://opendatacommunities.org/id/metropolitan-district-council/wolverhampton","700979","Af Blakemore/Blakemore Foodservice","5745855","-281.09","Provisions (Resale)","130202946","31/01/2018","Visitor Economy","Art Gallery Tea Room","R4102"
"Wolverhampton City Council","http://opendatacommunities.org/id/metropolitan-district-council/wolverhampton","700979","Af Blakemore/Blakemore Foodservice","5745855","237.79","Provisions (Resale)","130202946","31/01/2018","Visitor Economy","Art Gallery Tea Room","R4102"
"Wolverhampton City Council","http://opendatacommunities.org/id/metropolitan-district-council/wolverhampton","700979","Af Blakemore/Blakemore Foodservice","5745855","43.30","Provisions (Resale)","130202946","31/01/2018","Visitor Economy","Art Gallery Tea Room","R4102"
"Wolverhampton City Council","http://opendatacommunities.org/id/metropolitan-district-council/wolverhampton","700979","Af Blakemore/Blakemore Foodservice","5656304","417.12","Provisions (Not for resale)","130195454","24/01/2018","Older People Provider Services","Bradley Lodge Resource Centre","R4101"
"Wolverhampton City Council","http://opendatacommunities.org/id/metropolitan-district-council/wolverhampton","700979","Af Blakemore/Blakemore Foodservice","5656304","-417.12","Provisions (Not for resale)","130195454","24/01/2018","Older People Provider Services","Bradley Lodge Resource Centre","R4101"
"Wolverhampton City Council","http://opendatacommunities.org/id/metropolitan-district-council/wolverhampton","700979","Af Blakemore/Blakemore Foodservice","5656304","138.62","Provisions (Not for resale)","130195454","24/01/2018","Older People Provider Services","Bradley Lodge Resource Centre","R4101"
"Wolverhampton City Council","http://opendatacommunities.org/id/metropolitan-district-council/wolverhampton","700979","Af Blakemore/Blakemore Foodservice","5656304","278.50","Provisions (Not for resale)","130195454","24/01/2018","Older People Provider Services","Bradley Lodge Resource Centre","R4101"
"Wolverhampton City Council","http://opendatacommunities.org/id/metropolitan-district-council/wolverhampton","700979","Af Blakemore/Blakemore Foodservice","5686428","14.50","Provisions (Not for resale)","130196354","24/01/2018","Older People Provider Services","Bradley Lodge Resource Centre","R4101"
"Wolverhampton City Council","http://opendatacommunities.org/id/metropolitan-district-council/wolverhampton","700979","Af Blakemore/Blakemore Foodservice","5686428","-14.50","Provisions (Not for resale)","130196354","24/01/2018","Older People Provider Services","Bradley Lodge Resource Centre","R4101"
"Wolverhampton City Council","http://opendatacommunities.org/id/metropolitan-district-council/wolverhampton","700979","Af Blakemore/Blakemore Foodservice","5686428","9.64","Provisions (Not for resale)","130196354","24/01/2018","Older People Provider Services","Bradley Lodge Resource Centre","R4101"
"Wolverhampton City Council","http://opendatacommunities.org/id/metropolitan-district-council/wolverhampton","700979","Af Blakemore/Blakemore Foodservice","5686428","4.86","Provisions (Not for resale)","130196354","24/01/2018","Older People Provider Services","Bradley Lodge Resource Centre","R4101"
"Wolverhampton City Council","http://opendatacommunities.org/id/metropolitan-district-council/wolverhampton","700979","Af Blakemore/Blakemore Foodservice","5721017","118.43","Provisions (Resale)","130202927","26/01/2018","Adult Education","Caf�","R4102"
"Wolverhampton City Council","http://opendatacommunities.org/id/metropolitan-district-council/wolverhampton","700979","Af Blakemore/Blakemore Foodservice","5721017","-118.43","Provisions (Resale)","130202927","26/01/2018","Adult Education","Caf�","R4102"
"Wolverhampton City Council","http://opendatacommunities.org/id/metropolitan-district-council/wolverhampton","700979","Af Blakemore/Blakemore Foodservice","5721017","101.39","Provisions (Resale)","130202927","26/01/2018","Adult Education","Caf�","R4102"
"Wolverhampton City Council","http://opendatacommunities.org/id/metropolitan-district-council/wolverhampton","700979","Af Blakemore/Blakemore Foodservice","5721017","17.04","Provisions (Resale)","130202927","26/01/2018","Adult Education","Caf�","R4102"
"Wolverhampton City Council","http://opendatacommunities.org/id/metropolitan-district-council/wolverhampton","700979","Af Blakemore/Blakemore Foodservice","5727204","326.90","Provisions (Resale)","130202931","26/01/2018","Visitor Economy","Bantock - Tea Rooms","R4102"
"Wolverhampton City Council","http://opendatacommunities.org/id/metropolitan-district-council/wolverhampton","700979","Af Blakemore/Blakemore Foodservice","5727204","-326.90","Provisions (Resale)","130202931","26/01/2018","Visitor Economy","Bantock - Tea Rooms","R4102"
"Wolverhampton City Council","http://opendatacommunities.org/id/metropolitan-district-council/wolverhampton","700979","Af Blakemore/Blakemore Foodservice","5727204","309.41","Provisions (Resale)","130202931","26/01/2018","Visitor Economy","Bantock - Tea Rooms","R4102"
"Wolverhampton City Council","http://opendatacommunities.org/id/metropolitan-district-council/wolverhampton","700979","Af Blakemore/Blakemore Foodservice","5727204","17.49","Provisions (Resale)","130202931","26/01/2018","Visitor Economy","Bantock - Tea Rooms","R4102"
"Wolverhampton City Council","http://opendatacommunities.org/id/metropolitan-district-council/wolverhampton","700979","Af Blakemore/Blakemore Foodservice","5736990","307.07","Provisions (Resale)","130202937","26/01/2018","Visitor Economy","Bantock - Tea Rooms","R4102"
"Wolverhampton City Council","http://opendatacommunities.org/id/metropolitan-district-council/wolverhampton","700979","Af Blakemore/Blakemore Foodservice","5736990","-307.07","Provisions (Resale)","130202937","26/01/2018","Visitor Economy","Bantock - Tea Rooms","R4102"
"Wolverhampton City Council","http://opendatacommunities.org/id/metropolitan-district-council/wolverhampton","700979","Af Blakemore/Blakemore Foodservice","5736990","145.99","Provisions (Resale)","130202937","26/01/2018","Visitor Economy","Bantock - Tea Rooms","R4102"
"Wolverhampton City Council","http://opendatacommunities.org/id/metropolitan-district-council/wolverhampton","700979","Af Blakemore/Blakemore Foodservice","5736990","161.08","Provisions (Resale)","130202937","26/01/2018","Visitor Economy","Bantock - Tea Rooms","R4102"
"Wolverhampton City Council","http://opendatacommunities.org/id/metropolitan-district-council/wolverhampton","700979","Af Blakemore/Blakemore Foodservice","5737132","272.86","Provisions (Resale)","130202938","26/01/2018","Visitor Economy","Art Gallery Tea Room","R4102"
"Wolverhampton City Council","http://opendatacommunities.org/id/metropolitan-district-council/wolverhampton","700979","Af Blakemore/Blakemore Foodservice","5737132","-272.86","Provisions (Resale)","130202938","26/01/2018","Visitor Economy","Art Gallery Tea Room","R4102"
"Wolverhampton City Council","http://opendatacommunities.org/id/metropolitan-district-council/wolverhampton","700979","Af Blakemore/Blakemore Foodservice","5737132","200.71","Provisions (Resale)","130202938","26/01/2018","Visitor Economy","Art Gallery Tea Room","R4102"
"Wolverhampton City Council","http://opendatacommunities.org/id/metropolitan-district-council/wolverhampton","700979","Af Blakemore/Blakemore Foodservice","5737132","72.15","Provisions (Resale)","130202938","26/01/2018","Visitor Economy","Art Gallery Tea Room","R4102"
"Wolverhampton City Council","http://opendatacommunities.org/id/metropolitan-district-council/wolverhampton","700979","Af Blakemore/Blakemore Foodservice","5703253","36.25","Provisions (Resale)","130203275","26/01/2018","Adult Education","Caf�","R4102"
"Wolverhampton City Council","http://opendatacommunities.org/id/metropolitan-district-council/wolverhampton","700979","Af Blakemore/Blakemore Foodservice","5704224","137.55","Provisions (Resale)","130203280","26/01/2018","Visitor Economy","Bantock - Tea Rooms","R4102"
"Wolverhampton City Council","http://opendatacommunities.org/id/metropolitan-district-council/wolverhampton","700979","Af Blakemore/Blakemore Foodservice","5704224","-137.55","Provisions (Resale)","130203280","26/01/2018","Visitor Economy","Bantock - Tea Rooms","R4102"
"Wolverhampton City Council","http://opendatacommunities.org/id/metropolitan-district-council/wolverhampton","700979","Af Blakemore/Blakemore Foodservice","5704224","109.89","Provisions (Resale)","130203280","26/01/2018","Visitor Economy","Bantock - Tea Rooms","R4102"
"Wolverhampton City Council","http://opendatacommunities.org/id/metropolitan-district-council/wolverhampton","700979","Af Blakemore/Blakemore Foodservice","5704224","27.66","Provisions (Resale)","130203280","26/01/2018","Visitor Economy","Bantock - Tea Rooms","R4102"
"Wolverhampton City Council","http://opendatacommunities.org/id/metropolitan-district-council/wolverhampton","700979","Af Blakemore/Blakemore Foodservice","5604738","466.56","Provisions (Resale)","130195836","10/01/2018","Adult Education","Caf�","R4102"
"Wolverhampton City Council","http://opendatacommunities.org/id/metropolitan-district-council/wolverhampton","700979","Af Blakemore/Blakemore Foodservice","5604738","-466.56","Provisions (Resale)","130195836","10/01/2018","Adult Education","Caf�","R4102"
"Wolverhampton City Council","http://opendatacommunities.org/id/metropolitan-district-council/wolverhampton","700979","Af Blakemore/Blakemore Foodservice","5604738","201.98","Provisions (Resale)","130195836","10/01/2018","Adult Education","Caf�","R4102"
"Wolverhampton City Council","http://opendatacommunities.org/id/metropolitan-district-council/wolverhampton","700979","Af Blakemore/Blakemore Foodservice","5604738","264.58","Provisions (Resale)","130195836","10/01/2018","Adult Education","Caf�","R4102"
"Wolverhampton City Council","http://opendatacommunities.org/id/metropolitan-district-council/wolverhampton","700979","Af Blakemore/Blakemore Foodservice","WCA000048","1,409.86","Provisions (Not for resale)","130199441","17/01/2018","Leisure Services","WV Active Catering","R4101"
"Wolverhampton City Council","http://opendatacommunities.org/id/metropolitan-district-council/wolverhampton","700979","Af Blakemore/Blakemore Foodservice","WCA000048","588.95","Provisions (Not for resale)","130199441","17/01/2018","Leisure Services","WV Active Catering","R4101"
"Wolverhampton City Council","http://opendatacommunities.org/id/metropolitan-district-council/wolverhampton","700979","Af Blakemore/Blakemore Foodservice","WCC000334","609.32","Provisions (Resale)","130199445","17/01/2018","Catering","Meals on Wheels","R4102"
"Wolverhampton City Council","http://opendatacommunities.org/id/metropolitan-district-council/wolverhampton","700979","Af Blakemore/Blakemore Foodservice","WCC000334","-609.32","Provisions (Resale)","130199445","17/01/2018","Catering","Meals on Wheels","R4102"
"Wolverhampton City Council","http://opendatacommunities.org/id/metropolitan-district-council/wolverhampton","700979","Af Blakemore/Blakemore Foodservice","WCC000334","584.48","Provisions (Resale)","130199445","17/01/2018","Catering","Meals on Wheels","R4102"
"Wolverhampton City Council","http://opendatacommunities.org/id/metropolitan-district-council/wolverhampton","700979","Af Blakemore/Blakemore Foodservice","WCC000334","24.84","Provisions (Resale)","130199445","17/01/2018","Catering","Meals on Wheels","R4102"
"Wolverhampton City Council","http://opendatacommunities.org/id/metropolitan-district-council/wolverhampton","700979","Af Blakemore/Blakemore Foodservice","5746658","84.06","Provisions (Resale)","130202949","31/01/2018","Visitor Economy","Art Gallery Tea Room","R4102"
"Wolverhampton City Council","http://opendatacommunities.org/id/metropolitan-district-council/wolverhampton","700979","Af Blakemore/Blakemore Foodservice","5746658","-84.06","Provisions (Resale)","130202949","31/01/2018","Visitor Economy","Art Gallery Tea Room","R4102"
"Wolverhampton City Council","http://opendatacommunities.org/id/metropolitan-district-council/wolverhampton","700979","Af Blakemore/Blakemore Foodservice","5746658","70.23","Provisions (Resale)","130202949","31/01/2018","Visitor Economy","Art Gallery Tea Room","R4102"
"Wolverhampton City Council","http://opendatacommunities.org/id/metropolitan-district-council/wolverhampton","700979","Af Blakemore/Blakemore Foodservice","5746658","13.83","Provisions (Resale)","130202949","31/01/2018","Visitor Economy","Art Gallery Tea Room","R4102"
"Wolverhampton City Council","http://opendatacommunities.org/id/metropolitan-district-council/wolverhampton","700979","Af Blakemore/Blakemore Foodservice","WCC000331","96,814.19","Provisions (Resale)","130203137","24/01/2018","Catering","Education Catering - General Overheads","R4102"
"Wolverhampton City Council","http://opendatacommunities.org/id/metropolitan-district-council/wolverhampton","700979","Af Blakemore/Blakemore Foodservice","WCC000331","-96,814.19","Provisions (Resale)","130203137","24/01/2018","Catering","Education Catering - General Overheads","R4102"
"Wolverhampton City Council","http://opendatacommunities.org/id/metropolitan-district-council/wolverhampton","700979","Af Blakemore/Blakemore Foodservice","WCC000331","96,676.42","Provisions (Resale)","130203137","24/01/2018","Catering","Education Catering - General Overheads","R4102"
"Wolverhampton City Council","http://opendatacommunities.org/id/metropolitan-district-council/wolverhampton","700979","Af Blakemore/Blakemore Foodservice","WCC000331","137.77","Provisions (Resale)","130203137","24/01/2018","Catering","Education Catering - General Overheads","R4102"
"Wolverhampton City Council","http://opendatacommunities.org/id/metropolitan-district-council/wolverhampton","700979","Af Blakemore/Blakemore Foodservice","5735943","35.50","Provisions (Not for resale)","130202936","24/01/2018","Older People Provider Services","Blakenhall Resource Centre","R4101"
"Wolverhampton City Council","http://opendatacommunities.org/id/metropolitan-district-council/wolverhampton","700979","Af Blakemore/Blakemore Foodservice","5741762","-69.74","Provisions (Resale)","130202942","26/01/2018","Visitor Economy","Bantock - Tea Rooms","R4102"
"Wolverhampton City Council","http://opendatacommunities.org/id/metropolitan-district-council/wolverhampton","700979","Af Blakemore/Blakemore Foodservice","5741762","69.74","Provisions (Resale)","130202942","26/01/2018","Visitor Economy","Bantock - Tea Rooms","R4102"
"Wolverhampton City Council","http://opendatacommunities.org/id/metropolitan-district-council/wolverhampton","700979","Af Blakemore/Blakemore Foodservice","5741762","-69.74","Provisions (Resale)","130202942","26/01/2018","Visitor Economy","Bantock - Tea Rooms","R4102"
"Wolverhampton City Council","http://opendatacommunities.org/id/metropolitan-district-council/wolverhampton","700979","Af Blakemore/Blakemore Foodservice","5703237","252.07","Provisions (Resale)","130202922","26/01/2018","Adult Education","Caf�","R4102"
"Wolverhampton City Council","http://opendatacommunities.org/id/metropolitan-district-council/wolverhampton","700979","Af Blakemore/Blakemore Foodservice","5703237","-252.07","Provisions (Resale)","130202922","26/01/2018","Adult Education","Caf�","R4102"
"Wolverhampton City Council","http://opendatacommunities.org/id/metropolitan-district-council/wolverhampton","700979","Af Blakemore/Blakemore Foodservice","5703237","205.23","Provisions (Resale)","130202922","26/01/2018","Adult Education","Caf�","R4102"
"Wolverhampton City Council","http://opendatacommunities.org/id/metropolitan-district-council/wolverhampton","700979","Af Blakemore/Blakemore Foodservice","5703237","46.84","Provisions (Resale)","130202922","26/01/2018","Adult Education","Caf�","R4102"
"Wolverhampton City Council","http://opendatacommunities.org/id/metropolitan-district-council/wolverhampton","700979","Af Blakemore/Blakemore Foodservice","5709658","145.08","Provisions (Resale)","130203281","26/01/2018","Visitor Economy","Bantock - Tea Rooms","R4102"
"Wolverhampton City Council","http://opendatacommunities.org/id/metropolitan-district-council/wolverhampton","700979","Af Blakemore/Blakemore Foodservice","5709658","-145.08","Provisions (Resale)","130203281","26/01/2018","Visitor Economy","Bantock - Tea Rooms","R4102"
"Wolverhampton City Council","http://opendatacommunities.org/id/metropolitan-district-council/wolverhampton","700979","Af Blakemore/Blakemore Foodservice","5709658","121.38","Provisions (Resale)","130203281","26/01/2018","Visitor Economy","Bantock - Tea Rooms","R4102"
"Wolverhampton City Council","http://opendatacommunities.org/id/metropolitan-district-council/wolverhampton","700979","Af Blakemore/Blakemore Foodservice","5709658","23.70","Provisions (Resale)","130203281","26/01/2018","Visitor Economy","Bantock - Tea Rooms","R4102"
"Wolverhampton City Council","http://opendatacommunities.org/id/metropolitan-district-council/wolverhampton","700979","Af Blakemore/Blakemore Foodservice","5720851","65.64","Provisions (Not for resale)","130202926","24/01/2018","Strategic Organisation Development","Central Children�s Library","R4101"
"Wolverhampton City Council","http://opendatacommunities.org/id/metropolitan-district-council/wolverhampton","700979","Af Blakemore/Blakemore Foodservice","5720851","-65.64","Provisions (Not for resale)","130202926","24/01/2018","Strategic Organisation Development","Central Children�s Library","R4101"
"Wolverhampton City Council","http://opendatacommunities.org/id/metropolitan-district-council/wolverhampton","700979","Af Blakemore/Blakemore Foodservice","5720851","75.23","Provisions (Not for resale)","130202926","24/01/2018","Strategic Organisation Development","Central Children�s Library","R4101"
"Wolverhampton City Council","http://opendatacommunities.org/id/metropolitan-district-council/wolverhampton","700979","Af Blakemore/Blakemore Foodservice","5702917","201.44","Provisions (Resale)","130202921","26/01/2018","Visitor Economy","Art Gallery Tea Room","R4102"
"Wolverhampton City Council","http://opendatacommunities.org/id/metropolitan-district-council/wolverhampton","700979","Af Blakemore/Blakemore Foodservice","5702917","-201.44","Provisions (Resale)","130202921","26/01/2018","Visitor Economy","Art Gallery Tea Room","R4102"
"Wolverhampton City Council","http://opendatacommunities.org/id/metropolitan-district-council/wolverhampton","700979","Af Blakemore/Blakemore Foodservice","5702917","144.11","Provisions (Resale)","130202921","26/01/2018","Visitor Economy","Art Gallery Tea Room","R4102"
"Wolverhampton City Council","http://opendatacommunities.org/id/metropolitan-district-council/wolverhampton","700979","Af Blakemore/Blakemore Foodservice","5702917","57.33","Provisions (Resale)","130202921","26/01/2018","Visitor Economy","Art Gallery Tea Room","R4102"
"Wolverhampton City Council","http://opendatacommunities.org/id/metropolitan-district-council/wolverhampton","700979","Af Blakemore/Blakemore Foodservice","5701107","383.38","Provisions (Resale)","130202920","26/01/2018","Visitor Economy","Bantock - Tea Rooms","R4102"
"Wolverhampton City Council","http://opendatacommunities.org/id/metropolitan-district-council/wolverhampton","700979","Af Blakemore/Blakemore Foodservice","5701107","-383.38","Provisions (Resale)","130202920","26/01/2018","Visitor Economy","Bantock - Tea Rooms","R4102"
"Wolverhampton City Council","http://opendatacommunities.org/id/metropolitan-district-council/wolverhampton","700979","Af Blakemore/Blakemore Foodservice","5701107","230.60","Provisions (Resale)","130202920","26/01/2018","Visitor Economy","Bantock - Tea Rooms","R4102"
"Wolverhampton City Council","http://opendatacommunities.org/id/metropolitan-district-council/wolverhampton","700979","Af Blakemore/Blakemore Foodservice","5701107","152.78","Provisions (Resale)","130202920","26/01/2018","Visitor Economy","Bantock - Tea Rooms","R4102"
"Wolverhampton City Council","http://opendatacommunities.org/id/metropolitan-district-council/wolverhampton","700979","Af Blakemore/Blakemore Foodservice","5720744","125.12","Provisions (Resale)","130202925","26/01/2018","Visitor Economy","Art Gallery Tea Room","R4102"
"Wolverhampton City Council","http://opendatacommunities.org/id/metropolitan-district-council/wolverhampton","700979","Af Blakemore/Blakemore Foodservice","5720744","-125.12","Provisions (Resale)","130202925","26/01/2018","Visitor Economy","Art Gallery Tea Room","R4102"
"Wolverhampton City Council","http://opendatacommunities.org/id/metropolitan-district-council/wolverhampton","700979","Af Blakemore/Blakemore Foodservice","5720744","82.63","Provisions (Resale)","130202925","26/01/2018","Visitor Economy","Art Gallery Tea Room","R4102"
"Wolverhampton City Council","http://opendatacommunities.org/id/metropolitan-district-council/wolverhampton","700979","Af Blakemore/Blakemore Foodservice","5720744","42.49","Provisions (Resale)","130202925","26/01/2018","Visitor Economy","Art Gallery Tea Room","R4102"
"Wolverhampton City Council","http://opendatacommunities.org/id/metropolitan-district-council/wolverhampton","700979","Af Blakemore/Blakemore Foodservice","5714326","259.74","Provisions (Resale)","130203283","26/01/2018","Visitor Economy","Bantock - Tea Rooms","R4102"
"Wolverhampton City Council","http://opendatacommunities.org/id/metropolitan-district-council/wolverhampton","700979","Af Blakemore/Blakemore Foodservice","5714326","-259.74","Provisions (Resale)","130203283","26/01/2018","Visitor Economy","Bantock - Tea Rooms","R4102"
"Wolverhampton City Council","http://opendatacommunities.org/id/metropolitan-district-council/wolverhampton","700979","Af Blakemore/Blakemore Foodservice","5714326","146.88","Provisions (Resale)","130203283","26/01/2018","Visitor Economy","Bantock - Tea Rooms","R4102"
"Wolverhampton City Council","http://opendatacommunities.org/id/metropolitan-district-council/wolverhampton","700979","Af Blakemore/Blakemore Foodservice","5714326","112.86","Provisions (Resale)","130203283","26/01/2018","Visitor Economy","Bantock - Tea Rooms","R4102"
"Wolverhampton City Council","http://opendatacommunities.org/id/metropolitan-district-council/wolverhampton","700979","Af Blakemore/Blakemore Foodservice","5627235","75.18","Provisions (Resale)","130196209","10/01/2018","Adult Education","Caf�","R4102"
"Wolverhampton City Council","http://opendatacommunities.org/id/metropolitan-district-council/wolverhampton","700979","Af Blakemore/Blakemore Foodservice","2702456","0.89","Equipment - Purchase","130201529","10/01/2018","Schools","Christ Church (Church of England) Junior School","R4000"
"Wolverhampton City Council","http://opendatacommunities.org/id/metropolitan-district-council/wolverhampton","700979","Af Blakemore/Blakemore Foodservice","2702456","10.97","Equipment - Purchase","130201529","10/01/2018","Schools","Christ Church (Church of England) Junior School","R4000"
"Wolverhampton City Council","http://opendatacommunities.org/id/metropolitan-district-council/wolverhampton","700979","Af Blakemore/Blakemore Foodservice","5722708","412.15","Provisions (Not for resale)","130200895","19/01/2018","Older People Provider Services","Blakenhall Resource Centre","R4101"
"Wolverhampton City Council","http://opendatacommunities.org/id/metropolitan-district-council/wolverhampton","700979","Af Blakemore/Blakemore Foodservice","5722708","-412.15","Provisions (Not for resale)","130200895","19/01/2018","Older People Provider Services","Blakenhall Resource Centre","R4101"
"Wolverhampton City Council","http://opendatacommunities.org/id/metropolitan-district-council/wolverhampton","700979","Af Blakemore/Blakemore Foodservice","5722708","368.67","Provisions (Not for resale)","130200895","19/01/2018","Older People Provider Services","Blakenhall Resource Centre","R4101"
"Wolverhampton City Council","http://opendatacommunities.org/id/metropolitan-district-council/wolverhampton","700979","Af Blakemore/Blakemore Foodservice","5722708","43.48","Provisions (Not for resale)","130200895","19/01/2018","Older People Provider Services","Blakenhall Resource Centre","R4101"
"Wolverhampton City Council","http://opendatacommunities.org/id/metropolitan-district-council/wolverhampton","700979","Af Blakemore/Blakemore Foodservice","WCC000332","1,113.68","Provisions (Resale)","130199443","17/01/2018","Catering","Civic Centre Catering","R4102"
"Wolverhampton City Council","http://opendatacommunities.org/id/metropolitan-district-council/wolverhampton","700979","Af Blakemore/Blakemore Foodservice","WCC000337","17.86","Provisions (Not for resale)","130199448","17/01/2018","Leisure Services","WV Active Catering","R4101"
"Wolverhampton City Council","http://opendatacommunities.org/id/metropolitan-district-council/wolverhampton","700979","Af Blakemore/Blakemore Foodservice","WCC000337","283.64","Provisions (Not for resale)","130199448","17/01/2018","Leisure Services","WV Active Catering","R4101"
"Wolverhampton City Council","http://opendatacommunities.org/id/metropolitan-district-council/wolverhampton","700979","Af Blakemore/Blakemore Foodservice","WCC000330","63,556.84","Provisions (Resale)","130199442","17/01/2018","Catering","Education Catering - General Overheads","R4102"
"Wolverhampton City Council","http://opendatacommunities.org/id/metropolitan-district-council/wolverhampton","700979","Af Blakemore/Blakemore Foodservice","WCC000330","-63,556.84","Provisions (Resale)","130199442","17/01/2018","Catering","Education Catering - General Overheads","R4102"
"Wolverhampton City Council","http://opendatacommunities.org/id/metropolitan-district-council/wolverhampton","700979","Af Blakemore/Blakemore Foodservice","WCC000330","58,077.11","Provisions (Resale)","130199442","17/01/2018","Catering","Education Catering - General Overheads","R4102"
"Wolverhampton City Council","http://opendatacommunities.org/id/metropolitan-district-council/wolverhampton","700979","Af Blakemore/Blakemore Foodservice","WCC000330","5,479.73","Provisions (Resale)","130199442","17/01/2018","Catering","Education Catering - General Overheads","R4102"
"Wolverhampton City Council","http://opendatacommunities.org/id/metropolitan-district-council/wolverhampton","700979","Af Blakemore/Blakemore Foodservice","5746043","100.90","Provisions (Resale)","130202947","31/01/2018","Adult Education","Caf�","R4102"
"Wolverhampton City Council","http://opendatacommunities.org/id/metropolitan-district-council/wolverhampton","700979","Af Blakemore/Blakemore Foodservice","5746043","-100.90","Provisions (Resale)","130202947","31/01/2018","Adult Education","Caf�","R4102"
"Wolverhampton City Council","http://opendatacommunities.org/id/metropolitan-district-council/wolverhampton","700979","Af Blakemore/Blakemore Foodservice","5746043","97.50","Provisions (Resale)","130202947","31/01/2018","Adult Education","Caf�","R4102"
"Wolverhampton City Council","http://opendatacommunities.org/id/metropolitan-district-council/wolverhampton","700979","Af Blakemore/Blakemore Foodservice","5746043","3.40","Provisions (Resale)","130202947","31/01/2018","Adult Education","Caf�","R4102"
"Wolverhampton City Council","http://opendatacommunities.org/id/metropolitan-district-council/wolverhampton","700979","Af Blakemore/Blakemore Foodservice","5509621","26.34","Provisions (Not for resale)","130196205","19/01/2018","Older People Provider Services","Blakenhall Resource Centre","R4101"
"Wolverhampton City Council","http://opendatacommunities.org/id/metropolitan-district-council/wolverhampton","700979","Af Blakemore/Blakemore Foodservice","5509621","-26.34","Provisions (Not for resale)","130196205","19/01/2018","Older People Provider Services","Blakenhall Resource Centre","R4101"
"Wolverhampton City Council","http://opendatacommunities.org/id/metropolitan-district-council/wolverhampton","700979","Af Blakemore/Blakemore Foodservice","5509621","6.18","Provisions (Not for resale)","130196205","19/01/2018","Older People Provider Services","Blakenhall Resource Centre","R4101"
"Wolverhampton City Council","http://opendatacommunities.org/id/metropolitan-district-council/wolverhampton","700979","Af Blakemore/Blakemore Foodservice","5509621","20.16","Provisions (Not for resale)","130196205","19/01/2018","Older People Provider Services","Blakenhall Resource Centre","R4101"
"Wolverhampton City Council","http://opendatacommunities.org/id/metropolitan-district-council/wolverhampton","700979","Af Blakemore/Blakemore Foodservice","5722808","19.13","Provisions (Not for resale)","130200896","12/01/2018","Older People Provider Services","Blakenhall Resource Centre","R4101"
"Wolverhampton City Council","http://opendatacommunities.org/id/metropolitan-district-council/wolverhampton","700979","Af Blakemore/Blakemore Foodservice","WCC000335","817.79","Provisions (Not for resale)","130199446","17/01/2018","Leisure Services","Bert Williams Leisure Centre Caf�","R4101"
"Wolverhampton City Council","http://opendatacommunities.org/id/metropolitan-district-council/wolverhampton","700979","Af Blakemore/Blakemore Foodservice","WCC000335","573.14","Provisions (Not for resale)","130199446","17/01/2018","Leisure Services","Bert Williams Leisure Centre Caf�","R4101"
"Wolverhampton City Council","http://opendatacommunities.org/id/metropolitan-district-council/wolverhampton","700979","Af Blakemore/Blakemore Foodservice","WCC000333","1,847.58","Provisions (Resale)","130199444","17/01/2018","Catering","Civic Centre Catering","R4102"
"Wolverhampton City Council","http://opendatacommunities.org/id/metropolitan-district-council/wolverhampton","700979","Af Blakemore/Blakemore Foodservice","WCC000333","3,469.74","Provisions (Resale)","130199444","17/01/2018","Catering","Civic Centre Catering","R4102"
"Wolverhampton City Council","http://opendatacommunities.org/id/metropolitan-district-council/wolverhampton","700979","Af Blakemore/Blakemore Foodservice","WCC000333","-3,469.74","Provisions (Resale)","130199444","17/01/2018","Catering","Civic Centre Catering","R4102"
"Wolverhampton City Council","http://opendatacommunities.org/id/metropolitan-district-council/wolverhampton","700979","Af Blakemore/Blakemore Foodservice","WCC000333","1,622.16","Provisions (Resale)","130199444","17/01/2018","Catering","Civic Centre Catering","R4102"
"Wolverhampton City Council","http://opendatacommunities.org/id/metropolitan-district-council/wolverhampton","700979","Af Blakemore/Blakemore Foodservice","5744869","437.64","Provisions (Resale)","130202945","31/01/2018","Visitor Economy","Bantock - Tea Rooms","R4102"
"Wolverhampton City Council","http://opendatacommunities.org/id/metropolitan-district-council/wolverhampton","700979","Af Blakemore/Blakemore Foodservice","5744869","-437.64","Provisions (Resale)","130202945","31/01/2018","Visitor Economy","Bantock - Tea Rooms","R4102"
"Wolverhampton City Council","http://opendatacommunities.org/id/metropolitan-district-council/wolverhampton","700979","Af Blakemore/Blakemore Foodservice","5744869","256.77","Provisions (Resale)","130202945","31/01/2018","Visitor Economy","Bantock - Tea Rooms","R4102"
"Wolverhampton City Council","http://opendatacommunities.org/id/metropolitan-district-council/wolverhampton","700979","Af Blakemore/Blakemore Foodservice","5744869","180.87","Provisions (Resale)","130202945","31/01/2018","Visitor Economy","Bantock - Tea Rooms","R4102"
"Wolverhampton City Council","http://opendatacommunities.org/id/metropolitan-district-council/wolverhampton","700979","Af Blakemore/Blakemore Foodservice","5610419","193.96","Provisions (Resale)","130196207","10/01/2018","Adult Education","Caf�","R4102"
"Wolverhampton City Council","http://opendatacommunities.org/id/metropolitan-district-council/wolverhampton","700979","Af Blakemore/Blakemore Foodservice","5610419","-193.96","Provisions (Resale)","130196207","10/01/2018","Adult Education","Caf�","R4102"
"Wolverhampton City Council","http://opendatacommunities.org/id/metropolitan-district-council/wolverhampton","700979","Af Blakemore/Blakemore Foodservice","5610419","101.80","Provisions (Resale)","130196207","10/01/2018","Adult Education","Caf�","R4102"
"Wolverhampton City Council","http://opendatacommunities.org/id/metropolitan-district-council/wolverhampton","700979","Af Blakemore/Blakemore Foodservice","5610419","92.16","Provisions (Resale)","130196207","10/01/2018","Adult Education","Caf�","R4102"
"Wolverhampton City Council","http://opendatacommunities.org/id/metropolitan-district-council/wolverhampton","700979","Af Blakemore/Blakemore Foodservice","5694026","215.07","Provisions (Resale)","130202915","26/01/2018","Visitor Economy","Art Gallery Tea Room","R4102"
"Wolverhampton City Council","http://opendatacommunities.org/id/metropolitan-district-council/wolverhampton","700979","Af Blakemore/Blakemore Foodservice","5694026","-215.07","Provisions (Resale)","130202915","26/01/2018","Visitor Economy","Art Gallery Tea Room","R4102"
"Wolverhampton City Council","http://opendatacommunities.org/id/metropolitan-district-council/wolverhampton","700979","Af Blakemore/Blakemore Foodservice","5694026","136.40","Provisions (Resale)","130202915","26/01/2018","Visitor Economy","Art Gallery Tea Room","R4102"
"Wolverhampton City Council","http://opendatacommunities.org/id/metropolitan-district-council/wolverhampton","700979","Af Blakemore/Blakemore Foodservice","5694026","78.67","Provisions (Resale)","130202915","26/01/2018","Visitor Economy","Art Gallery Tea Room","R4102"
"Wolverhampton City Council","http://opendatacommunities.org/id/metropolitan-district-council/wolverhampton","700979","Af Blakemore/Blakemore Foodservice","5712035","154.56","Provisions (Resale)","130202924","26/01/2018","Adult Education","Caf�","R4102"
"Wolverhampton City Council","http://opendatacommunities.org/id/metropolitan-district-council/wolverhampton","700979","Af Blakemore/Blakemore Foodservice","5712035","-154.56","Provisions (Resale)","130202924","26/01/2018","Adult Education","Caf�","R4102"
"Wolverhampton City Council","http://opendatacommunities.org/id/metropolitan-district-council/wolverhampton","700979","Af Blakemore/Blakemore Foodservice","5712035","76.91","Provisions (Resale)","130202924","26/01/2018","Adult Education","Caf�","R4102"
"Wolverhampton City Council","http://opendatacommunities.org/id/metropolitan-district-council/wolverhampton","700979","Af Blakemore/Blakemore Foodservice","5712035","77.65","Provisions (Resale)","130202924","26/01/2018","Adult Education","Caf�","R4102"
"Wolverhampton City Council","http://opendatacommunities.org/id/metropolitan-district-council/wolverhampton","700979","Af Blakemore/Blakemore Foodservice","5729433","23.07","Provisions (Resale)","130202933","24/01/2018","Adult Education","Caf�","R4102"
"Wolverhampton City Council","http://opendatacommunities.org/id/metropolitan-district-council/wolverhampton","700979","Af Blakemore/Blakemore Foodservice","5743695","10.65","Provisions (Not for resale)","130202943","24/01/2018","Older People Provider Services","Blakenhall Resource Centre","R4101"
"Wolverhampton City Council","http://opendatacommunities.org/id/metropolitan-district-council/wolverhampton","700979","Af Blakemore/Blakemore Foodservice","5712043","27.89","Provisions (Resale)","130203282","26/01/2018","Adult Education","Caf�","R4102"
"Wolverhampton City Council","http://opendatacommunities.org/id/metropolitan-district-council/wolverhampton","700979","Af Blakemore/Blakemore Foodservice","5703290","18.48","Provisions (Resale)","130203276","26/01/2018","Adult Education","Caf�","R4102"
"Wolverhampton City Council","http://opendatacommunities.org/id/metropolitan-district-council/wolverhampton","700979","Af Blakemore/Blakemore Foodservice","5711772","125.43","Provisions (Resale)","130202923","26/01/2018","Visitor Economy","Art Gallery Tea Room","R4102"
"Wolverhampton City Council","http://opendatacommunities.org/id/metropolitan-district-council/wolverhampton","700979","Af Blakemore/Blakemore Foodservice","5711772","-125.43","Provisions (Resale)","130202923","26/01/2018","Visitor Economy","Art Gallery Tea Room","R4102"
"Wolverhampton City Council","http://opendatacommunities.org/id/metropolitan-district-council/wolverhampton","700979","Af Blakemore/Blakemore Foodservice","5711772","95.89","Provisions (Resale)","130202923","26/01/2018","Visitor Economy","Art Gallery Tea Room","R4102"
"Wolverhampton City Council","http://opendatacommunities.org/id/metropolitan-district-council/wolverhampton","700979","Af Blakemore/Blakemore Foodservice","5711772","29.54","Provisions (Resale)","130202923","26/01/2018","Visitor Economy","Art Gallery Tea Room","R4102"
"Wolverhampton City Council","http://opendatacommunities.org/id/metropolitan-district-council/wolverhampton","700979","Af Blakemore/Blakemore Foodservice","5729430","72.07","Provisions (Resale)","130202932","26/01/2018","Adult Education","Caf�","R4102"
"Wolverhampton City Council","http://opendatacommunities.org/id/metropolitan-district-council/wolverhampton","700979","Af Blakemore/Blakemore Foodservice","5729430","-72.07","Provisions (Resale)","130202932","26/01/2018","Adult Education","Caf�","R4102"
"Wolverhampton City Council","http://opendatacommunities.org/id/metropolitan-district-council/wolverhampton","700979","Af Blakemore/Blakemore Foodservice","5729430","32.26","Provisions (Resale)","130202932","26/01/2018","Adult Education","Caf�","R4102"
"Wolverhampton City Council","http://opendatacommunities.org/id/metropolitan-district-council/wolverhampton","700979","Af Blakemore/Blakemore Foodservice","5729430","39.81","Provisions (Resale)","130202932","26/01/2018","Adult Education","Caf�","R4102"
"Wolverhampton City Council","http://opendatacommunities.org/id/metropolitan-district-council/wolverhampton","701100","Aggregate Industries UK Limited","25810881","104.58","Materials","130201842","17/01/2018","Highways Maintenance","Planned Highways Maintenance","R4007"
"Wolverhampton City Council","http://opendatacommunities.org/id/metropolitan-district-council/wolverhampton","701100","Aggregate Industries UK Limited","CBA 25533117","70,739.10","Construction and Conversion","130202055","17/01/2018","","Transport Structual Maintenance","C1100"
"Wolverhampton City Council","http://opendatacommunities.org/id/metropolitan-district-council/wolverhampton","701155","Aidapt Bathrooms Limited","322636","49.50","Equipment - Purchase","130199452","03/01/2018","Independent Living Service","Independent Living Service","R4000"
"Wolverhampton City Council","http://opendatacommunities.org/id/metropolitan-district-council/wolverhampton","701155","Aidapt Bathrooms Limited","322636","1,880.00","Equipment - Purchase","130199452","03/01/2018","Independent Living Service","Independent Living Service","R4000"
"Wolverhampton City Council","http://opendatacommunities.org/id/metropolitan-district-council/wolverhampton","701155","Aidapt Bathrooms Limited","322636","55.00","Equipment - Purchase","130199452","03/01/2018","Independent Living Service","Independent Living Service","R4000"
"Wolverhampton City Council","http://opendatacommunities.org/id/metropolitan-district-council/wolverhampton","701155","Aidapt Bathrooms Limited","325994","46.53","Equipment - Purchase","130202567","24/01/2018","Independent Living Service","Independent Living Service","R4000"
"Wolverhampton City Council","http://opendatacommunities.org/id/metropolitan-district-council/wolverhampton","701155","Aidapt Bathrooms Limited","322325","23.50","Equipment - Purchase","130199451","05/01/2018","Older People Provider Services","Older People Provider Management","R4000"
"Wolverhampton City Council","http://opendatacommunities.org/id/metropolitan-district-council/wolverhampton","701155","Aidapt Bathrooms Limited","323434","1,410.00","Equipment - Purchase","130200787","10/01/2018","Independent Living Service","Independent Living Service","R4000"
"Wolverhampton City Council","http://opendatacommunities.org/id/metropolitan-district-council/wolverhampton","701155","Aidapt Bathrooms Limited","323434","2.97","Equipment - Purchase","130200787","10/01/2018","Independent Living Service","Independent Living Service","R4000"
"Wolverhampton City Council","http://opendatacommunities.org/id/metropolitan-district-council/wolverhampton","701265","Airport Express West Midlands Limited","1653A","960.00","Client Transport","130201311","10/01/2018","School Planning & Resources","Special - Transport","R3042"
"Wolverhampton City Council","http://opendatacommunities.org/id/metropolitan-district-council/wolverhampton","701265","Airport Express West Midlands Limited","1654A","960.00","Client Transport","130201189","10/01/2018","School Planning & Resources","Secondary- Transport","R3042"
"Wolverhampton City Council","http://opendatacommunities.org/id/metropolitan-district-council/wolverhampton","701276","Airport-Link","BDW093","1,177.44","Client Transport","130201190","10/01/2018","School Planning & Resources","Special - Transport","R3042"
"Wolverhampton City Council","http://opendatacommunities.org/id/metropolitan-district-council/wolverhampton","701382","Alarm","27899","139.00","Subscriptions","130200897","26/01/2018","Audit Services","Audit Services","R4701"
"Wolverhampton City Council","http://opendatacommunities.org/id/metropolitan-district-council/wolverhampton","701382","Alarm","27898","527.00","Subscriptions","130201044","26/01/2018","Audit Services","Risk Management & Insurance","R4701"
"Wolverhampton City Council","http://opendatacommunities.org/id/metropolitan-district-council/wolverhampton","701393","Aldersley Church Early Learning Committee","TFT Spring 2018 Inst 1","2,829.60","Grant Payments","190415171","26/01/2018","Early Years","Early Years Entitlement Funding for Disadvantaged 2 Year Olds","R4700"
"Wolverhampton City Council","http://opendatacommunities.org/id/metropolitan-district-council/wolverhampton","701393","Aldersley Church Early Learning Committee","NEF Spring 2018 INST 1","13,132.50","TPP - Private Nursery Education Funding","190415159","26/01/2018","Early Years","Early Years Universal Entitlement for 3 and 4 Year Olds","R5035"
"Wolverhampton City Council","http://opendatacommunities.org/id/metropolitan-district-council/wolverhampton","701397","Aldridge Trimming","29731","120.00","Equipment - Purchase","190414524","24/01/2018","Fleet Services","Fleet Management","R4000"
"Wolverhampton City Council","http://opendatacommunities.org/id/metropolitan-district-council/wolverhampton","701401","Alexander Dennis Limited","1322696","65.04","Equipment - Purchase","190414518","24/01/2018","Fleet Services","Fleet Management","R4000"
"Wolverhampton City Council","http://opendatacommunities.org/id/metropolitan-district-council/wolverhampton","701401","Alexander Dennis Limited","1322695","26.60","Equipment - Purchase","190414517","24/01/2018","Fleet Services","Fleet Management","R4000"
"Wolverhampton City Council","http://opendatacommunities.org/id/metropolitan-district-council/wolverhampton","701408","Alice Whyley Creative Wonderland","ES40","1,750.00","Services - Consultants","130199455","10/01/2018","School Planning & Resources","Technical Support","R4404"
"Wolverhampton City Council","http://opendatacommunities.org/id/metropolitan-district-council/wolverhampton","701408","Alice Whyley Creative Wonderland","ES41","750.00","Services - Consultants","130200478","17/01/2018","School Planning & Resources","Technical Support","R4404"
"Wolverhampton City Council","http://opendatacommunities.org/id/metropolitan-district-council/wolverhampton","701417","All Saints Action Network Limited","TFT Spring 2018 Inst 1","11,318.40","Grant Payments","190415171","26/01/2018","Early Years","Early Years Entitlement Funding for Disadvantaged 2 Year Olds","R4700"
"Wolverhampton City Council","http://opendatacommunities.org/id/metropolitan-district-council/wolverhampton","701417","All Saints Action Network Limited","112167","60.00","Room Hire","130203474","31/01/2018","Community Safety","SWP - Locations","R2201"
"Wolverhampton City Council","http://opendatacommunities.org/id/metropolitan-district-council/wolverhampton","701417","All Saints Action Network Limited","NEF Spring 2018 INST 1","16,983.00","TPP - Private Nursery Education Funding","190415159","26/01/2018","Early Years","Early Years Universal Entitlement for 3 and 4 Year Olds","R5035"
"Wolverhampton City Council","http://opendatacommunities.org/id/metropolitan-district-council/wolverhampton","701417","All Saints Action Network Limited","112152","52.00","Room Hire","130199456","03/01/2018","Community Safety","SWP - Locations","R2201"
"Wolverhampton City Council","http://opendatacommunities.org/id/metropolitan-district-council/wolverhampton","701437","Allsorts Office Supplies Limited","708182","61.39","Furniture","130200788","17/01/2018","Corporate Communications","Insight and Performance","R4004"
"Wolverhampton City Council","http://opendatacommunities.org/id/metropolitan-district-council/wolverhampton","701437","Allsorts Office Supplies Limited","708182","-61.39","Furniture","130200788","17/01/2018","Corporate Communications","Insight and Performance","R4004"
"Wolverhampton City Council","http://opendatacommunities.org/id/metropolitan-district-council/wolverhampton","701437","Allsorts Office Supplies Limited","708182","51.16","Furniture","130200788","17/01/2018","Corporate Communications","Insight and Performance","R4004"
"Wolverhampton City Council","http://opendatacommunities.org/id/metropolitan-district-council/wolverhampton","701437","Allsorts Office Supplies Limited","708376","319.00","Equipment - Purchase","130200789","05/01/2018","Mental Health Assesment & Care Management","Mental Health Assessment & Care Management","R4000"
"Wolverhampton City Council","http://opendatacommunities.org/id/metropolitan-district-council/wolverhampton","701437","Allsorts Office Supplies Limited","708428","348.85","Stationery","130201191","10/01/2018","Legal Services","Legal Services","R4308"
"Wolverhampton City Council","http://opendatacommunities.org/id/metropolitan-district-council/wolverhampton","701437","Allsorts Office Supplies Limited","708175","283.12","Furniture","130199457","24/01/2018","Corporate Communications","Insight and Performance","R4004"
"Wolverhampton City Council","http://opendatacommunities.org/id/metropolitan-district-council/wolverhampton","701439","Allstar Business Solutions Limited","E2009195199","146.24","Petrol","190413596","19/01/2018","Fleet Services","Fleet Management","R3000"
"Wolverhampton City Council","http://opendatacommunities.org/id/metropolitan-district-council/wolverhampton","701439","Allstar Business Solutions Limited","E2009254892","33.29","Petrol","190413597","19/01/2018","Fleet Services","Fleet Management","R3000"
"Wolverhampton City Council","http://opendatacommunities.org/id/metropolitan-district-council/wolverhampton","701439","Allstar Business Solutions Limited","E2009254892","217.14","Petrol","190413597","19/01/2018","Fleet Services","Fleet Management","R3000"
"Wolverhampton City Council","http://opendatacommunities.org/id/metropolitan-district-council/wolverhampton","701439","Allstar Business Solutions Limited","E2009254892","1.65","Petrol","190413597","19/01/2018","Fleet Services","Fleet Management","R3000"
"Wolverhampton City Council","http://opendatacommunities.org/id/metropolitan-district-council/wolverhampton","701448","Alphatec 2000 Limited","9035","695.00","Equipment - R & M","130199458","05/01/2018","ICTS","Document Centre - General","R4003"
"Wolverhampton City Council","http://opendatacommunities.org/id/metropolitan-district-council/wolverhampton","701448","Alphatec 2000 Limited","9062","1,995.00","Equipment - Purchase","130199459","17/01/2018","ICTS","Document Centre - General","R4000"
"Wolverhampton City Council","http://opendatacommunities.org/id/metropolitan-district-council/wolverhampton","701509","Angel Springs Limited (Waterlogic)","4041025","15.64","Provisions (Not for resale)","130200900","05/01/2018","Early Intervention","EIP Locality 8 � Children�s Village","R4101"
"Wolverhampton City Council","http://opendatacommunities.org/id/metropolitan-district-council/wolverhampton","701509","Angel Springs Limited (Waterlogic)","3931395","12.96","Provisions (Not for resale)","130199460","03/01/2018","Environmental Maintenance","Arbor Scheme","R4101"
"Wolverhampton City Council","http://opendatacommunities.org/id/metropolitan-district-council/wolverhampton","701509","Angel Springs Limited (Waterlogic)","3878001","235.97","Equipment - Purchase","130199351","03/01/2018","Early Intervention","EIP Locality 5 � Whitmore Reans","R4000"
"Wolverhampton City Council","http://opendatacommunities.org/id/metropolitan-district-council/wolverhampton","701509","Angel Springs Limited (Waterlogic)","4093050","134.84","Provisions (Not for resale)","130201695","26/01/2018","Facilities Management","Culwell Street Depot","R4101"
"Wolverhampton City Council","http://opendatacommunities.org/id/metropolitan-district-council/wolverhampton","701509","Angel Springs Limited (Waterlogic)","3189436","40.92","Provisions (Not for resale)","130203164","24/01/2018","Customer Services","City Direct","R4101"
"Wolverhampton City Council","http://opendatacommunities.org/id/metropolitan-district-council/wolverhampton","701509","Angel Springs Limited (Waterlogic)","3986851","20.60","Provisions (Not for resale)","130201693","12/01/2018","Facilities Management","Culwell Street Depot","R4101"
"Wolverhampton City Council","http://opendatacommunities.org/id/metropolitan-district-council/wolverhampton","701509","Angel Springs Limited (Waterlogic)","4041027","154.32","Provisions (Not for resale)","130203476","31/01/2018","Fleet Services","Fleet Management","R4101"
"Wolverhampton City Council","http://opendatacommunities.org/id/metropolitan-district-council/wolverhampton","701509","Angel Springs Limited (Waterlogic)","3986088","12.96","Provisions (Not for resale)","130200898","05/01/2018","Environmental Maintenance","Ground Maintenance West","R4101"
"Wolverhampton City Council","http://opendatacommunities.org/id/metropolitan-district-council/wolverhampton","701509","Angel Springs Limited (Waterlogic)","3936133","-72.00","Equipment - Purchase","130201184","10/01/2018","Early Intervention","EIP Locality 5 � Whitmore Reans","R4000"
"Wolverhampton City Council","http://opendatacommunities.org/id/metropolitan-district-council/wolverhampton","701509","Angel Springs Limited (Waterlogic)","4040248","10.30","Provisions (Not for resale)","130199463","03/01/2018","Environmental Maintenance","Arbor Scheme","R4101"
"Wolverhampton City Council","http://opendatacommunities.org/id/metropolitan-district-council/wolverhampton","701509","Angel Springs Limited (Waterlogic)","3931396","16.20","Provisions (Not for resale)","130199461","03/01/2018","Environmental Maintenance","Arbor Scheme","R4101"
"Wolverhampton City Council","http://opendatacommunities.org/id/metropolitan-district-council/wolverhampton","701509","Angel Springs Limited (Waterlogic)","4093054","15.64","Provisions (Not for resale)","130201844","26/01/2018","Early Intervention","EIP Locality 8 � Children�s Village","R4101"
"Wolverhampton City Council","http://opendatacommunities.org/id/metropolitan-district-council/wolverhampton","701509","Angel Springs Limited (Waterlogic)","4093019","30.90","Provisions (Not for resale)","130202568","26/01/2018","School Planning & Resources","Education Data Services","R4101"
"Wolverhampton City Council","http://opendatacommunities.org/id/metropolitan-district-council/wolverhampton","701509","Angel Springs Limited (Waterlogic)","4041020","10.30","Provisions (Not for resale)","130201843","12/01/2018","Facilities Management","Culwell Street Depot","R4101"
"Wolverhampton City Council","http://opendatacommunities.org/id/metropolitan-district-council/wolverhampton","701509","Angel Springs Limited (Waterlogic)","4040986","59.48","Provisions (Not for resale)","130203798","31/01/2018","Fleet Services","Passenger Transport - General","R4101"
"Wolverhampton City Council","http://opendatacommunities.org/id/metropolitan-district-council/wolverhampton","701509","Angel Springs Limited (Waterlogic)","4093051","15.64","Provisions (Not for resale)","130201313","26/01/2018","Facilities Management","Culwell Street Depot","R4101"
"Wolverhampton City Council","http://opendatacommunities.org/id/metropolitan-district-council/wolverhampton","701509","Angel Springs Limited (Waterlogic)","3888659","56.01","Cleaning Supplies and Materials","130203284","24/01/2018","Strategic Organisation Development","Global Budgets","R2705"
"Wolverhampton City Council","http://opendatacommunities.org/id/metropolitan-district-council/wolverhampton","701509","Angel Springs Limited (Waterlogic)","4041021","89.52","Provisions (Not for resale)","130201694","24/01/2018","Facilities Management","Culwell Street Depot","R4101"
"Wolverhampton City Council","http://opendatacommunities.org/id/metropolitan-district-council/wolverhampton","701509","Angel Springs Limited (Waterlogic)","3986812","50.64","Provisions (Not for resale)","130203797","31/01/2018","Fleet Services","Passenger Transport - General","R4101"
"Wolverhampton City Council","http://opendatacommunities.org/id/metropolitan-district-council/wolverhampton","701509","Angel Springs Limited (Waterlogic)","4093017","9.72","Provisions (Not for resale)","130203799","31/01/2018","Fleet Services","Passenger Transport - General","R4101"
"Wolverhampton City Council","http://opendatacommunities.org/id/metropolitan-district-council/wolverhampton","701509","Angel Springs Limited (Waterlogic)","3932155","64.80","Provisions (Not for resale)","130201692","12/01/2018","Facilities Management","Culwell Street Depot","R4101"
"Wolverhampton City Council","http://opendatacommunities.org/id/metropolitan-district-council/wolverhampton","701509","Angel Springs Limited (Waterlogic)","3986856","178.10","Provisions (Not for resale)","130203475","31/01/2018","Fleet Services","Fleet Management","R4101"
"Wolverhampton City Council","http://opendatacommunities.org/id/metropolitan-district-council/wolverhampton","701509","Angel Springs Limited (Waterlogic)","4093056","145.70","Provisions (Not for resale)","130203477","31/01/2018","Fleet Services","Fleet Management","R4101"
"Wolverhampton City Council","http://opendatacommunities.org/id/metropolitan-district-council/wolverhampton","701509","Angel Springs Limited (Waterlogic)","4040247","32.98","Provisions (Not for resale)","130199462","03/01/2018","Environmental Maintenance","Ground Maintenance East","R4101"
"Wolverhampton City Council","http://opendatacommunities.org/id/metropolitan-district-council/wolverhampton","701509","Angel Springs Limited (Waterlogic)","4040246","10.30","Provisions (Not for resale)","130200899","05/01/2018","Environmental Maintenance","Ground Maintenance West","R4101"
"Wolverhampton City Council","http://opendatacommunities.org/id/metropolitan-district-council/wolverhampton","701509","Angel Springs Limited (Waterlogic)","4092313","9.72","Provisions (Not for resale)","130201312","26/01/2018","Environmental Maintenance","Ground Maintenance West","R4101"
"Wolverhampton City Council","http://opendatacommunities.org/id/metropolitan-district-council/wolverhampton","701509","Angel Springs Limited (Waterlogic)","3986814","16.20","Provisions (Not for resale)","130203656","26/01/2018","School Planning & Resources","Education Data Services","R4101"
"Wolverhampton City Council","http://opendatacommunities.org/id/metropolitan-district-council/wolverhampton","701509","Angel Springs Limited (Waterlogic)","4040249","16.20","Provisions (Not for resale)","130199464","03/01/2018","Environmental Maintenance","Arbor Scheme","R4101"
"Wolverhampton City Council","http://opendatacommunities.org/id/metropolitan-district-council/wolverhampton","701511","Angelbell Limited T/A Hulleys Frozen","330259","143.76","Provisions (Resale)","130199467","03/01/2018","Visitor Economy","Bantock - Tea Rooms","R4102"
"Wolverhampton City Council","http://opendatacommunities.org/id/metropolitan-district-council/wolverhampton","701511","Angelbell Limited T/A Hulleys Frozen","418488","78.99","Provisions (Resale)","130199468","03/01/2018","Visitor Economy","Bantock - Tea Rooms","R4102"
"Wolverhampton City Council","http://opendatacommunities.org/id/metropolitan-district-council/wolverhampton","701511","Angelbell Limited T/A Hulleys Frozen","289855","118.83","Provisions (Resale)","130199466","03/01/2018","Visitor Economy","Bantock - Tea Rooms","R4102"
"Wolverhampton City Council","http://opendatacommunities.org/id/metropolitan-district-council/wolverhampton","701512","Anglia Dna Services Limited","3349","474.00","Services - Professional Fees","130200479","12/01/2018","Child Protection","Head of Service - CINCP","R4400"
"Wolverhampton City Council","http://opendatacommunities.org/id/metropolitan-district-council/wolverhampton","701512","Anglia Dna Services Limited","3389","148.00","Services - Professional Fees","130200790","10/01/2018","Child Protection","Head of Service - CINCP","R4400"
"Wolverhampton City Council","http://opendatacommunities.org/id/metropolitan-district-council/wolverhampton","701512","Anglia Dna Services Limited","3115","158.00","Services - Professional Fees","130199469","03/01/2018","Child Protection","Head of Service - CINCP","R4400"
"Wolverhampton City Council","http://opendatacommunities.org/id/metropolitan-district-council/wolverhampton","701512","Anglia Dna Services Limited","3403","158.00","Services - Professional Fees","130200901","10/01/2018","Child Protection","Head of Service - CINCP","R4400"
"Wolverhampton City Council","http://opendatacommunities.org/id/metropolitan-district-council/wolverhampton","701545","Apcoa Parking (UK) Limited","264504","57,538.65","TPP - Traffic Management","130198362","12/01/2018","Parking Services","Parking Enforcement","R5050"
"Wolverhampton City Council","http://opendatacommunities.org/id/metropolitan-district-council/wolverhampton","701547","Apetito Limited","9002210146","1,195.59","Provisions (Resale)","130201314","31/01/2018","Catering","Meals on Wheels","R4102"
"Wolverhampton City Council","http://opendatacommunities.org/id/metropolitan-district-council/wolverhampton","701547","Apetito Limited","9002201725","1,175.06","Provisions (Resale)","130200604","17/01/2018","Catering","Meals on Wheels","R4102"
"Wolverhampton City Council","http://opendatacommunities.org/id/metropolitan-district-council/wolverhampton","701547","Apetito Limited","9002197722","491.02","Provisions (Resale)","130200481","17/01/2018","Catering","Meals on Wheels","R4102"
"Wolverhampton City Council","http://opendatacommunities.org/id/metropolitan-district-council/wolverhampton","701547","Apetito Limited","9002188760","1,570.25","Provisions (Resale)","130199471","17/01/2018","Catering","Meals on Wheels","R4102"
"Wolverhampton City Council","http://opendatacommunities.org/id/metropolitan-district-council/wolverhampton","701547","Apetito Limited","9002197723","82.80","Provisions (Resale)","130200482","17/01/2018","Catering","Meals on Wheels","R4102"
"Wolverhampton City Council","http://opendatacommunities.org/id/metropolitan-district-council/wolverhampton","701547","Apetito Limited","9002197721","955.50","Provisions (Resale)","130200480","17/01/2018","Catering","Meals on Wheels","R4102"
"Wolverhampton City Council","http://opendatacommunities.org/id/metropolitan-district-council/wolverhampton","701547","Apetito Limited","9002207343","1,572.87","Provisions (Resale)","130201045","24/01/2018","Catering","Meals on Wheels","R4102"
"Wolverhampton City Council","http://opendatacommunities.org/id/metropolitan-district-council/wolverhampton","701547","Apetito Limited","9002191177","707.73","Provisions (Resale)","130199472","17/01/2018","Catering","Meals on Wheels","R4102"
"Wolverhampton City Council","http://opendatacommunities.org/id/metropolitan-district-council/wolverhampton","701547","Apetito Limited","9002201724","1,148.48","Provisions (Resale)","130200603","17/01/2018","Catering","Meals on Wheels","R4102"
"Wolverhampton City Council","http://opendatacommunities.org/id/metropolitan-district-council/wolverhampton","701547","Apetito Limited","9002210147","83.49","Provisions (Resale)","130201537","31/01/2018","Catering","Meals on Wheels","R4102"
"Wolverhampton City Council","http://opendatacommunities.org/id/metropolitan-district-council/wolverhampton","701547","Apetito Limited","9002214376","911.40","Provisions (Resale)","130201845","31/01/2018","Catering","Meals on Wheels","R4102"
"Wolverhampton City Council","http://opendatacommunities.org/id/metropolitan-district-council/wolverhampton","701547","Apetito Limited","9002195210","891.51","Provisions (Resale)","130199473","17/01/2018","Catering","Meals on Wheels","R4102"
"Wolverhampton City Council","http://opendatacommunities.org/id/metropolitan-district-council/wolverhampton","701547","Apetito Limited","9002184777","1,349.66","Provisions (Resale)","130199470","17/01/2018","Catering","Meals on Wheels","R4102"
"Wolverhampton City Council","http://opendatacommunities.org/id/metropolitan-district-council/wolverhampton","701594","Argos Business Solutions Limited","01606294","227.00","Grant Payments","130199474","10/01/2018","Early Intervention","EIP Locality 3 - Graiseley","R4700"
"Wolverhampton City Council","http://opendatacommunities.org/id/metropolitan-district-council/wolverhampton","701594","Argos Business Solutions Limited","01606294","-227.00","Grant Payments","130199474","10/01/2018","Early Intervention","EIP Locality 3 - Graiseley","R4700"
"Wolverhampton City Council","http://opendatacommunities.org/id/metropolitan-district-council/wolverhampton","701594","Argos Business Solutions Limited","01606294","195.07","Grant Payments","130199474","10/01/2018","Early Intervention","EIP Locality 3 - Graiseley","R4700"
"Wolverhampton City Council","http://opendatacommunities.org/id/metropolitan-district-council/wolverhampton","701594","Argos Business Solutions Limited","01603685","52.54","Grant Payments","130197744","31/01/2018","Early Intervention","EIP Locality 3 - Graiseley","R4700"
"Wolverhampton City Council","http://opendatacommunities.org/id/metropolitan-district-council/wolverhampton","701594","Argos Business Solutions Limited","01603685","-52.54","Grant Payments","130197744","31/01/2018","Early Intervention","EIP Locality 3 - Graiseley","R4700"
"Wolverhampton City Council","http://opendatacommunities.org/id/metropolitan-district-council/wolverhampton","701594","Argos Business Solutions Limited","01603685","52.54","Grant Payments","130197744","31/01/2018","Early Intervention","EIP Locality 3 - Graiseley","R4700"
"Wolverhampton City Council","http://opendatacommunities.org/id/metropolitan-district-council/wolverhampton","701594","Argos Business Solutions Limited","01608855","533.99","Equipment - Purchase","130199475","12/01/2018","Early Intervention","EIP Locality 1 - Eastfields","R4000"
"Wolverhampton City Council","http://opendatacommunities.org/id/metropolitan-district-council/wolverhampton","701594","Argos Business Solutions Limited","01608855","-533.99","Equipment - Purchase","130199475","12/01/2018","Early Intervention","EIP Locality 1 - Eastfields","R4000"
"Wolverhampton City Council","http://opendatacommunities.org/id/metropolitan-district-council/wolverhampton","701594","Argos Business Solutions Limited","01608855","434.93","Equipment - Purchase","130199475","12/01/2018","Early Intervention","EIP Locality 1 - Eastfields","R4000"
"Wolverhampton City Council","http://opendatacommunities.org/id/metropolitan-district-council/wolverhampton","701594","Argos Business Solutions Limited","01611118","155.48","Grant Payments","130199476","31/01/2018","Early Intervention","EIP Locality 3 - Graiseley","R4700"
"Wolverhampton City Council","http://opendatacommunities.org/id/metropolitan-district-council/wolverhampton","701594","Argos Business Solutions Limited","01611118","-155.48","Grant Payments","130199476","31/01/2018","Early Intervention","EIP Locality 3 - Graiseley","R4700"
"Wolverhampton City Council","http://opendatacommunities.org/id/metropolitan-district-council/wolverhampton","701594","Argos Business Solutions Limited","01611118","155.48","Grant Payments","130199476","31/01/2018","Early Intervention","EIP Locality 3 - Graiseley","R4700"
"Wolverhampton City Council","http://opendatacommunities.org/id/metropolitan-district-council/wolverhampton","701595","Argus Fire Protection Co.Limited","39850","450.00","Equipment - Purchase","130200483","12/01/2018","Maintenance Programme","Civic Centre Repairs & Maintenance","R4000"
"Wolverhampton City Council","http://opendatacommunities.org/id/metropolitan-district-council/wolverhampton","701595","Argus Fire Protection Co.Limited","39852","740.00","R&M - Departmental planned (internal)","130200484","12/01/2018","Maintenance Programme","Centralised R&M","R2000"
"Wolverhampton City Council","http://opendatacommunities.org/id/metropolitan-district-council/wolverhampton","701603","Arnold Clark Finance Limited","HI2283972","18.12","Hire of Vehicles","190414563","24/01/2018","Fleet Services","Fleet Management","R3200"
"Wolverhampton City Council","http://opendatacommunities.org/id/metropolitan-district-council/wolverhampton","701603","Arnold Clark Finance Limited","HI2289542","18.12","Hire of Vehicles","190414570","24/01/2018","Fleet Services","Fleet Management","R3200"
"Wolverhampton City Council","http://opendatacommunities.org/id/metropolitan-district-council/wolverhampton","701603","Arnold Clark Finance Limited","HI2289563","27.98","Hire of Vehicles","190414572","24/01/2018","Fleet Services","Fleet Management","R3200"
"Wolverhampton City Council","http://opendatacommunities.org/id/metropolitan-district-council/wolverhampton","701603","Arnold Clark Finance Limited","HI2285352","18.12","Hire of Vehicles","190414564","24/01/2018","Fleet Services","Fleet Management","R3200"
"Wolverhampton City Council","http://opendatacommunities.org/id/metropolitan-district-council/wolverhampton","701603","Arnold Clark Finance Limited","HI2289548","18.12","Hire of Vehicles","190414571","24/01/2018","Fleet Services","Fleet Management","R3200"
"Wolverhampton City Council","http://opendatacommunities.org/id/metropolitan-district-council/wolverhampton","701603","Arnold Clark Finance Limited","HI2289531","29.10","Hire of Vehicles","190414569","24/01/2018","Fleet Services","Fleet Management","R3200"
"Wolverhampton City Council","http://opendatacommunities.org/id/metropolitan-district-council/wolverhampton","701603","Arnold Clark Finance Limited","HI2285667","14.55","Hire of Vehicles","190414567","24/01/2018","Fleet Services","Fleet Management","R3200"
"Wolverhampton City Council","http://opendatacommunities.org/id/metropolitan-district-council/wolverhampton","701603","Arnold Clark Finance Limited","HI2294540","43.95","Hire of Vehicles","190414577","24/01/2018","Fleet Services","Fleet Management","R3200"
"Wolverhampton City Council","http://opendatacommunities.org/id/metropolitan-district-council/wolverhampton","701603","Arnold Clark Finance Limited","HI2283971","18.12","Hire of Vehicles","190414562","24/01/2018","Fleet Services","Fleet Management","R3200"
"Wolverhampton City Council","http://opendatacommunities.org/id/metropolitan-district-council/wolverhampton","701603","Arnold Clark Finance Limited","HI2285666","18.12","Hire of Vehicles","190414566","24/01/2018","Fleet Services","Fleet Management","R3200"
"Wolverhampton City Council","http://opendatacommunities.org/id/metropolitan-district-council/wolverhampton","701603","Arnold Clark Finance Limited","HI2292776","18.12","Hire of Vehicles","190414574","24/01/2018","Fleet Services","Fleet Management","R3200"
"Wolverhampton City Council","http://opendatacommunities.org/id/metropolitan-district-council/wolverhampton","701603","Arnold Clark Finance Limited","HI2293289","23.25","Hire of Vehicles","190414575","24/01/2018","Fleet Services","Fleet Management","R3200"
"Wolverhampton City Council","http://opendatacommunities.org/id/metropolitan-district-council/wolverhampton","701603","Arnold Clark Finance Limited","HI2294410","14.55","Hire of Vehicles","190414576","24/01/2018","Fleet Services","Fleet Management","R3200"
"Wolverhampton City Council","http://opendatacommunities.org/id/metropolitan-district-council/wolverhampton","701603","Arnold Clark Finance Limited","HI2282697","18.12","Hire of Vehicles","190414561","24/01/2018","Fleet Services","Fleet Management","R3200"
"Wolverhampton City Council","http://opendatacommunities.org/id/metropolitan-district-council/wolverhampton","701603","Arnold Clark Finance Limited","HI2285353","18.12","Hire of Vehicles","190414565","24/01/2018","Fleet Services","Fleet Management","R3200"
"Wolverhampton City Council","http://opendatacommunities.org/id/metropolitan-district-council/wolverhampton","701603","Arnold Clark Finance Limited","HI2286588","36.24","Hire of Vehicles","190414568","24/01/2018","Fleet Services","Fleet Management","R3200"
"Wolverhampton City Council","http://opendatacommunities.org/id/metropolitan-district-council/wolverhampton","701603","Arnold Clark Finance Limited","HI2291660","18.12","Hire of Vehicles","190414573","24/01/2018","Fleet Services","Fleet Management","R3200"
"Wolverhampton City Council","http://opendatacommunities.org/id/metropolitan-district-council/wolverhampton","701613","Arthur Brett (Catering) Limited","ID994640","28.74","Provisions (Not for resale)","130201046","24/01/2018","Older People Provider Services","Bradley Lodge Resource Centre","R4101"
"Wolverhampton City Council","http://opendatacommunities.org/id/metropolitan-district-council/wolverhampton","701613","Arthur Brett (Catering) Limited","ID993084","24.98","Provisions (Resale)","130200903","24/01/2018","Older People Provider Services","Blakenhall Resource Centre","R4102"
"Wolverhampton City Council","http://opendatacommunities.org/id/metropolitan-district-council/wolverhampton","701613","Arthur Brett (Catering) Limited","ID996838","143.59","Provisions (Resale)","130203166","26/01/2018","Visitor Economy","Art Gallery Tea Room","R4102"
"Wolverhampton City Council","http://opendatacommunities.org/id/metropolitan-district-council/wolverhampton","701613","Arthur Brett (Catering) Limited","ID992272","116.61","Provisions (Resale)","130199489","03/01/2018","Visitor Economy","Art Gallery Tea Room","R4102"
"Wolverhampton City Council","http://opendatacommunities.org/id/metropolitan-district-council/wolverhampton","701613","Arthur Brett (Catering) Limited","3011174","146.15","Provisions (Resale)","130199480","10/01/2018","Catering","Meals on Wheels","R4102"
"Wolverhampton City Council","http://opendatacommunities.org/id/metropolitan-district-council/wolverhampton","701613","Arthur Brett (Catering) Limited","ID994907","1.44","Provisions (Resale)","130200905","10/01/2018","Visitor Economy","Art Gallery Tea Room","R4102"
"Wolverhampton City Council","http://opendatacommunities.org/id/metropolitan-district-council/wolverhampton","701613","Arthur Brett (Catering) Limited","3011171","276.10","Provisions (Resale)","130202052","17/01/2018","Leisure Services","Bert Williams Leisure Centre Caf�","R4102"
"Wolverhampton City Council","http://opendatacommunities.org/id/metropolitan-district-council/wolverhampton","701613","Arthur Brett (Catering) Limited","ID993599","16.44","Provisions (Resale)","130199494","05/01/2018","Visitor Economy","Art Gallery Tea Room","R4102"
"Wolverhampton City Council","http://opendatacommunities.org/id/metropolitan-district-council/wolverhampton","701613","Arthur Brett (Catering) Limited","ID999361","49.28","Provisions (Resale)","130203294","31/01/2018","Visitor Economy","Art Gallery Tea Room","R4102"
"Wolverhampton City Council","http://opendatacommunities.org/id/metropolitan-district-council/wolverhampton","701613","Arthur Brett (Catering) Limited","ID999497","72.46","Provisions (Resale)","130203295","31/01/2018","Visitor Economy","Bantock - Tea Rooms","R4102"
"Wolverhampton City Council","http://opendatacommunities.org/id/metropolitan-district-council/wolverhampton","701613","Arthur Brett (Catering) Limited","ID995297","13.57","Provisions (Resale)","130201194","12/01/2018","Adult Education","Caf�","R4102"
"Wolverhampton City Council","http://opendatacommunities.org/id/metropolitan-district-council/wolverhampton","701613","Arthur Brett (Catering) Limited","ID987124","39.26","Provisions (Not for resale)","130199073","12/01/2018","Older People Provider Services","Bradley Lodge Resource Centre","R4101"
"Wolverhampton City Council","http://opendatacommunities.org/id/metropolitan-district-council/wolverhampton","701613","Arthur Brett (Catering) Limited","ID994036","66.70","Provisions (Not for resale)","130201846","24/01/2018","Older People Provider Services","Bradley Lodge Resource Centre","R4101"
"Wolverhampton City Council","http://opendatacommunities.org/id/metropolitan-district-council/wolverhampton","701613","Arthur Brett (Catering) Limited","ID996906","34.41","Provisions (Resale)","130203289","26/01/2018","Adult Education","Caf�","R4102"
"Wolverhampton City Council","http://opendatacommunities.org/id/metropolitan-district-council/wolverhampton","701613","Arthur Brett (Catering) Limited","3011173","36,527.38","Provisions (Resale)","130199479","10/01/2018","Catering","Education Catering - General Overheads","R4102"
"Wolverhampton City Council","http://opendatacommunities.org/id/metropolitan-district-council/wolverhampton","701613","Arthur Brett (Catering) Limited","ID999700","92.36","Provisions (Resale)","130203296","31/01/2018","Visitor Economy","Art Gallery Tea Room","R4102"
"Wolverhampton City Council","http://opendatacommunities.org/id/metropolitan-district-council/wolverhampton","701613","Arthur Brett (Catering) Limited","ID1000520","45.82","Provisions (Resale)","130203479","31/01/2018","Visitor Economy","Art Gallery Tea Room","R4102"
"Wolverhampton City Council","http://opendatacommunities.org/id/metropolitan-district-council/wolverhampton","701613","Arthur Brett (Catering) Limited","ID994989","132.12","Provisions (Resale)","130201047","10/01/2018","Visitor Economy","Bantock - Tea Rooms","R4102"
"Wolverhampton City Council","http://opendatacommunities.org/id/metropolitan-district-council/wolverhampton","701613","Arthur Brett (Catering) Limited","ID992978","104.60","Provisions (Resale)","130199492","03/01/2018","Visitor Economy","Art Gallery Tea Room","R4102"
"Wolverhampton City Council","http://opendatacommunities.org/id/metropolitan-district-council/wolverhampton","701613","Arthur Brett (Catering) Limited","ID995660","85.64","Provisions (Resale)","130201538","17/01/2018","Visitor Economy","Bantock - Tea Rooms","R4102"
"Wolverhampton City Council","http://opendatacommunities.org/id/metropolitan-district-council/wolverhampton","701613","Arthur Brett (Catering) Limited","ID993846","129.02","Provisions (Resale)","130199495","05/01/2018","Visitor Economy","Art Gallery Tea Room","R4102"
"Wolverhampton City Council","http://opendatacommunities.org/id/metropolitan-district-council/wolverhampton","701613","Arthur Brett (Catering) Limited","ID990322","35.32","Provisions (Not for resale)","130198980","12/01/2018","Older People Provider Services","Bradley Lodge Resource Centre","R4101"
"Wolverhampton City Council","http://opendatacommunities.org/id/metropolitan-district-council/wolverhampton","701613","Arthur Brett (Catering) Limited","ID990870","30.09","Provisions (Not for resale)","130199487","12/01/2018","Older People Provider Services","Bradley Lodge Resource Centre","R4101"
"Wolverhampton City Council","http://opendatacommunities.org/id/metropolitan-district-council/wolverhampton","701613","Arthur Brett (Catering) Limited","ID994301","106.20","Provisions (Resale)","130201696","12/01/2018","Visitor Economy","Bantock - Tea Rooms","R4102"
"Wolverhampton City Council","http://opendatacommunities.org/id/metropolitan-district-council/wolverhampton","701613","Arthur Brett (Catering) Limited","ID997776","116.81","Provisions (Resale)","130203167","26/01/2018","Visitor Economy","Art Gallery Tea Room","R4102"
"Wolverhampton City Council","http://opendatacommunities.org/id/metropolitan-district-council/wolverhampton","701613","Arthur Brett (Catering) Limited","ID996773","2.30","Provisions (Resale)","130203287","24/01/2018","Visitor Economy","Bantock - Tea Rooms","R4102"
"Wolverhampton City Council","http://opendatacommunities.org/id/metropolitan-district-council/wolverhampton","701613","Arthur Brett (Catering) Limited","ID997834","22.65","Provisions (Resale)","130203291","24/01/2018","Visitor Economy","Bantock - Tea Rooms","R4102"
"Wolverhampton City Council","http://opendatacommunities.org/id/metropolitan-district-council/wolverhampton","701613","Arthur Brett (Catering) Limited","ID992502","52.12","Provisions (Resale)","130200791","10/01/2018","Adult Education","Caf�","R4102"
"Wolverhampton City Council","http://opendatacommunities.org/id/metropolitan-district-council/wolverhampton","701613","Arthur Brett (Catering) Limited","ID994780","130.63","Provisions (Resale)","130200904","10/01/2018","Visitor Economy","Art Gallery Tea Room","R4102"
"Wolverhampton City Council","http://opendatacommunities.org/id/metropolitan-district-council/wolverhampton","701613","Arthur Brett (Catering) Limited","ID1000468","68.22","Provisions (Resale)","130203801","31/01/2018","Visitor Economy","Bantock - Tea Rooms","R4102"
"Wolverhampton City Council","http://opendatacommunities.org/id/metropolitan-district-council/wolverhampton","701613","Arthur Brett (Catering) Limited","ID999983","60.69","Provisions (Resale)","130203297","31/01/2018","Adult Education","Caf�","R4102"
"Wolverhampton City Council","http://opendatacommunities.org/id/metropolitan-district-council/wolverhampton","701613","Arthur Brett (Catering) Limited","3011172","67.58","Provisions (Resale)","130202051","17/01/2018","Leisure Services","WV Active Catering","R4102"
"Wolverhampton City Council","http://opendatacommunities.org/id/metropolitan-district-council/wolverhampton","701613","Arthur Brett (Catering) Limited","ID987105","39.12","Provisions (Not for resale)","130197955","17/01/2018","Older People Provider Services","Bradley Lodge Resource Centre","R4101"
"Wolverhampton City Council","http://opendatacommunities.org/id/metropolitan-district-council/wolverhampton","701613","Arthur Brett (Catering) Limited","ID989646","34.60","Provisions (Resale)","130199485","05/01/2018","Adult Education","Caf�","R4102"
"Wolverhampton City Council","http://opendatacommunities.org/id/metropolitan-district-council/wolverhampton","701613","Arthur Brett (Catering) Limited","ID990927","16.76","Provisions (Resale)","130199075","05/01/2018","Adult Education","Caf�","R4102"
"Wolverhampton City Council","http://opendatacommunities.org/id/metropolitan-district-council/wolverhampton","701613","Arthur Brett (Catering) Limited","ID998850","165.48","Provisions (Resale)","130203292","26/01/2018","Visitor Economy","Bantock - Tea Rooms","R4102"
"Wolverhampton City Council","http://opendatacommunities.org/id/metropolitan-district-council/wolverhampton","701613","Arthur Brett (Catering) Limited","ID991846","11.92","Provisions (Not for resale)","130200485","12/01/2018","Older People Provider Services","Bradley Lodge Resource Centre","R4101"
"Wolverhampton City Council","http://opendatacommunities.org/id/metropolitan-district-council/wolverhampton","701613","Arthur Brett (Catering) Limited","ID990865","38.77","Provisions (Not for resale)","130199293","12/01/2018","Older People Provider Services","Bradley Lodge Resource Centre","R4101"
"Wolverhampton City Council","http://opendatacommunities.org/id/metropolitan-district-council/wolverhampton","701613","Arthur Brett (Catering) Limited","ID996885","101.70","Provisions (Resale)","130203288","24/01/2018","Visitor Economy","Bantock - Tea Rooms","R4102"
"Wolverhampton City Council","http://opendatacommunities.org/id/metropolitan-district-council/wolverhampton","701613","Arthur Brett (Catering) Limited","ID996485","143.20","Provisions (Resale)","130203286","24/01/2018","Visitor Economy","Bantock - Tea Rooms","R4102"
"Wolverhampton City Council","http://opendatacommunities.org/id/metropolitan-district-council/wolverhampton","701613","Arthur Brett (Catering) Limited","ID994426","72.34","Provisions (Resale)","130200792","05/01/2018","Visitor Economy","Bantock - Tea Rooms","R4102"
"Wolverhampton City Council","http://opendatacommunities.org/id/metropolitan-district-council/wolverhampton","701613","Arthur Brett (Catering) Limited","ID994338","143.03","Provisions (Resale)","130200605","03/01/2018","Visitor Economy","Art Gallery Tea Room","R4102"
"Wolverhampton City Council","http://opendatacommunities.org/id/metropolitan-district-council/wolverhampton","701613","Arthur Brett (Catering) Limited","ID1000486","34.86","Provisions (Resale)","130203478","31/01/2018","Visitor Economy","Art Gallery Tea Room","R4102"
"Wolverhampton City Council","http://opendatacommunities.org/id/metropolitan-district-council/wolverhampton","701613","Arthur Brett (Catering) Limited","ID994596","42.57","Provisions (Resale)","130200793","10/01/2018","Visitor Economy","Bantock - Tea Rooms","R4102"
"Wolverhampton City Council","http://opendatacommunities.org/id/metropolitan-district-council/wolverhampton","701613","Arthur Brett (Catering) Limited","3011175","1,356.21","Provisions (Resale)","130199481","10/01/2018","Catering","Civic Centre Catering","R4102"
"Wolverhampton City Council","http://opendatacommunities.org/id/metropolitan-district-council/wolverhampton","701613","Arthur Brett (Catering) Limited","ID998887","27.45","Provisions (Resale)","130203293","31/01/2018","Older People Provider Services","Blakenhall Resource Centre","R4102"
"Wolverhampton City Council","http://opendatacommunities.org/id/metropolitan-district-council/wolverhampton","701613","Arthur Brett (Catering) Limited","ID995254","31.62","Provisions (Resale)","130201193","12/01/2018","Visitor Economy","Art Gallery Tea Room","R4102"
"Wolverhampton City Council","http://opendatacommunities.org/id/metropolitan-district-council/wolverhampton","701616","Arthur M Griffiths & Son Limited","17487","14,702.00","Construction and Conversion","130201847","12/01/2018","","Co-Location Programme","C1100"
"Wolverhampton City Council","http://opendatacommunities.org/id/metropolitan-district-council/wolverhampton","701616","Arthur M Griffiths & Son Limited","IN17486","9,325.62","Construction and Conversion","130201849","12/01/2018","","Primary Expansion Programme","C1100"
"Wolverhampton City Council","http://opendatacommunities.org/id/metropolitan-district-council/wolverhampton","701616","Arthur M Griffiths & Son Limited","IN17485","9,941.06","Construction and Conversion","130201848","12/01/2018","","Capital Maintenance - Structural Works","C1100"
"Wolverhampton City Council","http://opendatacommunities.org/id/metropolitan-district-council/wolverhampton","701626","Asan Management Services Limited","112153","72.00","Room Hire","130203090","24/01/2018","Safeguarding","Head of Service Quality and Safeguarding","R2201"
"Wolverhampton City Council","http://opendatacommunities.org/id/metropolitan-district-council/wolverhampton","701626","Asan Management Services Limited","112153","90.00","Catering","130203090","24/01/2018","Safeguarding","Head of Service Quality and Safeguarding","R4100"
"Wolverhampton City Council","http://opendatacommunities.org/id/metropolitan-district-council/wolverhampton","701626","Asan Management Services Limited","112153","-72.00","Room Hire","130203090","24/01/2018","Safeguarding","Head of Service Quality and Safeguarding","R2201"
"Wolverhampton City Council","http://opendatacommunities.org/id/metropolitan-district-council/wolverhampton","701626","Asan Management Services Limited","112153","72.00","Room Hire","130203090","24/01/2018","Safeguarding","Head of Service Quality and Safeguarding","R2201"
"Wolverhampton City Council","http://opendatacommunities.org/id/metropolitan-district-council/wolverhampton","701639","Ash Rubber Stamp Co.Limited.","401100229","151.30","Stationery","130201850","31/01/2018","Strategic Organisation Development","Global Budgets","R4308"
"Wolverhampton City Council","http://opendatacommunities.org/id/metropolitan-district-council/wolverhampton","701643","Ashdown Supplies","15052","338.40","Materials","130199503","03/01/2018","Bereavement Services","Cemeteries","R4007"
"Wolverhampton City Council","http://opendatacommunities.org/id/metropolitan-district-council/wolverhampton","701656","Askews & Holts Library Services Limited","157764E","-3.71","Books","130203481","26/01/2018","Strategic Organisation Development","Global Budgets","R4309"
"Wolverhampton City Council","http://opendatacommunities.org/id/metropolitan-district-council/wolverhampton","701656","Askews & Holts Library Services Limited","5600197","85.40","Books","130200486","17/01/2018","Strategic Organisation Development","Global Budgets","R4309"
"Wolverhampton City Council","http://opendatacommunities.org/id/metropolitan-district-council/wolverhampton","701656","Askews & Holts Library Services Limited","5516898","51.48","Books","130203488","26/01/2018","Strategic Organisation Development","Global Budgets","R4309"
"Wolverhampton City Council","http://opendatacommunities.org/id/metropolitan-district-council/wolverhampton","701656","Askews & Holts Library Services Limited","5597227","4.83","Books","130203298","26/01/2018","Strategic Organisation Development","Global Budgets","R4309"
"Wolverhampton City Council","http://opendatacommunities.org/id/metropolitan-district-council/wolverhampton","701656","Askews & Holts Library Services Limited","5516897","35.00","Books","130203487","26/01/2018","Strategic Organisation Development","Global Budgets","R4309"
"Wolverhampton City Council","http://opendatacommunities.org/id/metropolitan-district-council/wolverhampton","701656","Askews & Holts Library Services Limited","5597228","518.76","Books","130203299","26/01/2018","Strategic Organisation Development","Global Budgets","R4309"
"Wolverhampton City Council","http://opendatacommunities.org/id/metropolitan-district-council/wolverhampton","701656","Askews & Holts Library Services Limited","5516896","50.71","Books","130203486","26/01/2018","Strategic Organisation Development","Global Budgets","R4309"
"Wolverhampton City Council","http://opendatacommunities.org/id/metropolitan-district-council/wolverhampton","701656","Askews & Holts Library Services Limited","158199E","-4.27","Books","130203483","26/01/2018","Strategic Organisation Development","Global Budgets","R4309"
"Wolverhampton City Council","http://opendatacommunities.org/id/metropolitan-district-council/wolverhampton","701656","Askews & Holts Library Services Limited","5603125","21.82","Books","130200488","17/01/2018","Strategic Organisation Development","Global Budgets","R4309"
"Wolverhampton City Council","http://opendatacommunities.org/id/metropolitan-district-council/wolverhampton","701656","Askews & Holts Library Services Limited","5601869","21.64","Books","130200487","17/01/2018","Strategic Organisation Development","Global Budgets","R4309"
"Wolverhampton City Council","http://opendatacommunities.org/id/metropolitan-district-council/wolverhampton","701656","Askews & Holts Library Services Limited","5591968","53.67","Books","130199505","10/01/2018","Strategic Organisation Development","Global Budgets","R4309"
"Wolverhampton City Council","http://opendatacommunities.org/id/metropolitan-district-council/wolverhampton","701656","Askews & Holts Library Services Limited","5516895","563.96","Books","130203485","26/01/2018","Strategic Organisation Development","Global Budgets","R4309"
"Wolverhampton City Council","http://opendatacommunities.org/id/metropolitan-district-council/wolverhampton","701656","Askews & Holts Library Services Limited","5597229","584.97","Books","130203300","26/01/2018","Strategic Organisation Development","Global Budgets","R4309"
"Wolverhampton City Council","http://opendatacommunities.org/id/metropolitan-district-council/wolverhampton","701656","Askews & Holts Library Services Limited","158198E","-4.83","Books","130203482","26/01/2018","Strategic Organisation Development","Global Budgets","R4309"
"Wolverhampton City Council","http://opendatacommunities.org/id/metropolitan-district-council/wolverhampton","701672","Assn Of Electoral Administrators","22450","740.00","Training Expenses","130202387","19/01/2018","Human Resources","Centralised Training","R1650"
"Wolverhampton City Council","http://opendatacommunities.org/id/metropolitan-district-council/wolverhampton","701680","Associated  Radio Taxi�s","ART-17-009783","616.63","Client Transport","130200797","10/01/2018","School Planning & Resources","Primary - Transport","R3042"
"Wolverhampton City Council","http://opendatacommunities.org/id/metropolitan-district-council/wolverhampton","701680","Associated  Radio Taxi�s","ART-17-009781","663.12","Client Transport","130200796","10/01/2018","School Planning & Resources","Secondary- Transport","R3042"
"Wolverhampton City Council","http://opendatacommunities.org/id/metropolitan-district-council/wolverhampton","701680","Associated  Radio Taxi�s","ART-17-009785","763.68","Client Transport","130200799","10/01/2018","School Planning & Resources","Secondary- Transport","R3042"
"Wolverhampton City Council","http://opendatacommunities.org/id/metropolitan-district-council/wolverhampton","701680","Associated  Radio Taxi�s","ART-17-009780","570.00","Client Transport","130200795","10/01/2018","School Planning & Resources","Secondary- Transport","R3042"
"Wolverhampton City Council","http://opendatacommunities.org/id/metropolitan-district-council/wolverhampton","701680","Associated  Radio Taxi�s","ART-17-009782","683.80","Client Transport","130201851","12/01/2018","School Planning & Resources","Special - Transport","R3042"
"Wolverhampton City Council","http://opendatacommunities.org/id/metropolitan-district-council/wolverhampton","701680","Associated  Radio Taxi�s","ART-17-009784","835.08","Client Transport","130200798","10/01/2018","School Planning & Resources","Primary - Transport","R3042"
"Wolverhampton City Council","http://opendatacommunities.org/id/metropolitan-district-council/wolverhampton","701680","Associated  Radio Taxi�s","ART-17-009779","188.93","Client Transport","130200794","10/01/2018","School Planning & Resources","Special - Transport","R3042"
"Wolverhampton City Council","http://opendatacommunities.org/id/metropolitan-district-council/wolverhampton","701712","Pelican Rouge Coffee Solutions Limited","180032392","66.27","Equipment - Purchase","130199354","12/01/2018","Corporate Asset Management","Future Space Decant Area","R4000"
"Wolverhampton City Council","http://opendatacommunities.org/id/metropolitan-district-council/wolverhampton","701712","Pelican Rouge Coffee Solutions Limited","180031507","33.34","Equipment - Hire","130199352","12/01/2018","Democratic Services","Members Expenses","R4001"
"Wolverhampton City Council","http://opendatacommunities.org/id/metropolitan-district-council/wolverhampton","701712","Pelican Rouge Coffee Solutions Limited","180031506","-99.61","Equipment - Hire","130199383","12/01/2018","Democratic Services","Members Expenses","R4001"
"Wolverhampton City Council","http://opendatacommunities.org/id/metropolitan-district-council/wolverhampton","701712","Pelican Rouge Coffee Solutions Limited","180031878","-99.61","Equipment - Hire","130199385","10/01/2018","Democratic Services","Members Expenses","R4001"
"Wolverhampton City Council","http://opendatacommunities.org/id/metropolitan-district-council/wolverhampton","701712","Pelican Rouge Coffee Solutions Limited","180022371","411.28","Provisions (Resale)","130199508","10/01/2018","Catering","Civic Centre Catering","R4102"
"Wolverhampton City Council","http://opendatacommunities.org/id/metropolitan-district-council/wolverhampton","701712","Pelican Rouge Coffee Solutions Limited","180022371","-411.28","Provisions (Resale)","130199508","10/01/2018","Catering","Civic Centre Catering","R4102"
"Wolverhampton City Council","http://opendatacommunities.org/id/metropolitan-district-council/wolverhampton","701712","Pelican Rouge Coffee Solutions Limited","180022371","411.28","Provisions (Resale)","130199508","10/01/2018","Catering","Civic Centre Catering","R4102"
"Wolverhampton City Council","http://opendatacommunities.org/id/metropolitan-district-council/wolverhampton","701712","Pelican Rouge Coffee Solutions Limited","180041894","449.88","Provisions (Resale)","130201539","31/01/2018","Catering","Civic Centre Catering","R4102"
"Wolverhampton City Council","http://opendatacommunities.org/id/metropolitan-district-council/wolverhampton","701712","Pelican Rouge Coffee Solutions Limited","180041894","-449.88","Provisions (Resale)","130201539","31/01/2018","Catering","Civic Centre Catering","R4102"
"Wolverhampton City Council","http://opendatacommunities.org/id/metropolitan-district-council/wolverhampton","701712","Pelican Rouge Coffee Solutions Limited","180041894","43.38","Provisions (Resale)","130201539","31/01/2018","Catering","Civic Centre Catering","R4102"
"Wolverhampton City Council","http://opendatacommunities.org/id/metropolitan-district-council/wolverhampton","701712","Pelican Rouge Coffee Solutions Limited","180041894","406.50","Provisions (Resale)","130201539","31/01/2018","Catering","Civic Centre Catering","R4102"
"Wolverhampton City Council","http://opendatacommunities.org/id/metropolitan-district-council/wolverhampton","701712","Pelican Rouge Coffee Solutions Limited","180031886","33.34","Equipment - Hire","130199353","12/01/2018","Democratic Services","Members Expenses","R4001"
"Wolverhampton City Council","http://opendatacommunities.org/id/metropolitan-district-council/wolverhampton","701712","Pelican Rouge Coffee Solutions Limited","180006833","99.61","Equipment - Hire","130193816","12/01/2018","Democratic Services","Members Expenses","R4001"
"Wolverhampton City Council","http://opendatacommunities.org/id/metropolitan-district-council/wolverhampton","701712","Pelican Rouge Coffee Solutions Limited","180031508","66.27","Equipment - Purchase","130199384","10/01/2018","Corporate Asset Management","Future Space Decant Area","R4000"
"Wolverhampton City Council","http://opendatacommunities.org/id/metropolitan-district-council/wolverhampton","701712","Pelican Rouge Coffee Solutions Limited","180031451","99.61","Equipment - Hire","130203091","24/01/2018","Democratic Services","Members Expenses","R4001"
"Wolverhampton City Council","http://opendatacommunities.org/id/metropolitan-district-council/wolverhampton","701712","Pelican Rouge Coffee Solutions Limited","180029128","99.61","Equipment - Hire","130199382","12/01/2018","Democratic Services","Members Expenses","R4001"
"Wolverhampton City Council","http://opendatacommunities.org/id/metropolitan-district-council/wolverhampton","701771","Back Care Solutions Limited","58334","1,352.50","Furniture","130203806","31/01/2018","Looked After Children","Fostering Team & Allowances","R4004"
"Wolverhampton City Council","http://opendatacommunities.org/id/metropolitan-district-council/wolverhampton","701784","Bains Supersave Limited","APNEWS045","45.20","Books","130202392","19/01/2018","Strategic Organisation Development","Global Budgets","R4309"
"Wolverhampton City Council","http://opendatacommunities.org/id/metropolitan-district-council/wolverhampton","701784","Bains Supersave Limited","APNEWS044","44.55","Books","130202571","24/01/2018","Strategic Organisation Development","Global Budgets","R4309"
"Wolverhampton City Council","http://opendatacommunities.org/id/metropolitan-district-council/wolverhampton","701787","Baker Hall Limited","WV/12/17","857.50","Services - Consultants","130200800","24/01/2018","Planning","Building Consultancy","R4404"
"Wolverhampton City Council","http://opendatacommunities.org/id/metropolitan-district-council/wolverhampton","701788","Baker Ross Limited","SO1232268","80.16","Equipment - Purchase","130201530","10/01/2018","Schools","Christ Church (Church of England) Junior School","R4000"
"Wolverhampton City Council","http://opendatacommunities.org/id/metropolitan-district-council/wolverhampton","701788","Baker Ross Limited","SO1232268","2.49","Comms - Postage","130201530","10/01/2018","Schools","Christ Church (Church of England) Junior School","R4503"
"Wolverhampton City Council","http://opendatacommunities.org/id/metropolitan-district-council/wolverhampton","701805","Barnardos Childrens Charity","146518435","90.13","Client Transport","130202572","31/01/2018","Looked After Children","Adoption and Residence Team & Allowances","R3042"
"Wolverhampton City Council","http://opendatacommunities.org/id/metropolitan-district-council/wolverhampton","701808","Barnsley Metropolitan Boro Council","9000232213","3,000.00","Subscriptions","130201315","31/01/2018","Strategic Finance","Strategic Finance","R4701"
"Wolverhampton City Council","http://opendatacommunities.org/id/metropolitan-district-council/wolverhampton","701832","Bbp.Security Services & Training Limited","1034CIV110118","4,510.94","Services - Security","130201854","17/01/2018","Visitor Economy","Civic & Wulfrun In-House Promotions","R4405"
"Wolverhampton City Council","http://opendatacommunities.org/id/metropolitan-district-council/wolverhampton","701832","Bbp.Security Services & Training Limited","1032CIV040117","5,340.04","Services - Security","130201317","17/01/2018","Visitor Economy","Civic & Wulfrun Outhouse & Other Comercial Events","R4405"
"Wolverhampton City Council","http://opendatacommunities.org/id/metropolitan-district-council/wolverhampton","701832","Bbp.Security Services & Training Limited","1030CIV111217","6,349.69","Services - Security","130200606","05/01/2018","Visitor Economy","Civic & Wulfrun Outhouse & Other Comercial Events","R4405"
"Wolverhampton City Council","http://opendatacommunities.org/id/metropolitan-district-council/wolverhampton","701832","Bbp.Security Services & Training Limited","1026LCIV071217","1,239.53","Services - Security","130199512","03/01/2018","Visitor Economy","The Little Civic","R4405"
"Wolverhampton City Council","http://opendatacommunities.org/id/metropolitan-district-council/wolverhampton","701832","Bbp.Security Services & Training Limited","053TM221217","6,944.00","Services - Security","130200489","10/01/2018","Licensing","Licensing - Private Hire Vehicles","R4405"
"Wolverhampton City Council","http://opendatacommunities.org/id/metropolitan-district-council/wolverhampton","701832","Bbp.Security Services & Training Limited","053TM221217","6,720.00","Services - Security","130200489","10/01/2018","Licensing","Licensing - Private Hire Vehicles","R4405"
"Wolverhampton City Council","http://opendatacommunities.org/id/metropolitan-district-council/wolverhampton","701832","Bbp.Security Services & Training Limited","191WCC180118","506.00","Services - Security","130203170","24/01/2018","Looked After Children","Head of Service - LAC","R4405"
"Wolverhampton City Council","http://opendatacommunities.org/id/metropolitan-district-council/wolverhampton","701832","Bbp.Security Services & Training Limited","193WCC180118","1,700.00","Services - Security","130203172","24/01/2018","Facilities Management","i10 Facilities Management","R4405"
"Wolverhampton City Council","http://opendatacommunities.org/id/metropolitan-district-council/wolverhampton","701832","Bbp.Security Services & Training Limited","194WCC180118","9,240.00","Services - Security","130203173","26/01/2018","Facilities Management","Management of Vacant Properties","R4405"
"Wolverhampton City Council","http://opendatacommunities.org/id/metropolitan-district-council/wolverhampton","701832","Bbp.Security Services & Training Limited","1029CIV040117","4,472.76","Services - Security","130201316","17/01/2018","Visitor Economy","Civic & Wulfrun In-House Promotions","R4405"
"Wolverhampton City Council","http://opendatacommunities.org/id/metropolitan-district-council/wolverhampton","701832","Bbp.Security Services & Training Limited","185WCC211217","7,966.63","Services - Security","130199513","03/01/2018","Licensing","Licensing - Private Hire Vehicles","R4405"
"Wolverhampton City Council","http://opendatacommunities.org/id/metropolitan-district-council/wolverhampton","701832","Bbp.Security Services & Training Limited","195WCC180118","330.00","Services - Security","130203141","24/01/2018","Facilities Management","Civic Centre","R4405"
"Wolverhampton City Council","http://opendatacommunities.org/id/metropolitan-district-council/wolverhampton","701832","Bbp.Security Services & Training Limited","192WCC180118","1,685.00","Services - Security","130203171","24/01/2018","Facilities Management","Civic Centre","R4405"
"Wolverhampton City Council","http://opendatacommunities.org/id/metropolitan-district-council/wolverhampton","701832","Bbp.Security Services & Training Limited","1033CIV110118","3,204.75","Services - Security","130201853","17/01/2018","Visitor Economy","Civic & Wulfrun In-House Promotions","R4405"
"Wolverhampton City Council","http://opendatacommunities.org/id/metropolitan-district-council/wolverhampton","701832","Bbp.Security Services & Training Limited","187WCC160118","36.00","Services - Security","130202679","24/01/2018","Facilities Management","Caretakers Supply Pool","R4405"
"Wolverhampton City Council","http://opendatacommunities.org/id/metropolitan-district-council/wolverhampton","701832","Bbp.Security Services & Training Limited","189WCC180118","126.00","Services - Security","130203168","24/01/2018","Facilities Management","Caretakers Supply Pool","R4405"
"Wolverhampton City Council","http://opendatacommunities.org/id/metropolitan-district-council/wolverhampton","701832","Bbp.Security Services & Training Limited","1035CIV120118OE","3,422.69","Services - Security","130202393","19/01/2018","Visitor Economy","Christmas Festivities","R4405"
"Wolverhampton City Council","http://opendatacommunities.org/id/metropolitan-district-council/wolverhampton","701832","Bbp.Security Services & Training Limited","1031LCIV040117","465.28","Services - Security","130201048","17/01/2018","Visitor Economy","The Little Civic","R4405"
"Wolverhampton City Council","http://opendatacommunities.org/id/metropolitan-district-council/wolverhampton","701832","Bbp.Security Services & Training Limited","190WCC180118","534.00","Services - Security","130203169","31/01/2018","Leisure Services","Bert Williams Leisure Centre","R4405"
"Wolverhampton City Council","http://opendatacommunities.org/id/metropolitan-district-council/wolverhampton","701832","Bbp.Security Services & Training Limited","188WCC180118","36.00","Services - Security","130203140","24/01/2018","Facilities Management","Caretakers Supply Pool","R4405"
"Wolverhampton City Council","http://opendatacommunities.org/id/metropolitan-district-council/wolverhampton","701832","Bbp.Security Services & Training Limited","186WCC110118","3,948.00","Services - Security","130202394","19/01/2018","Adult Education","Service Wide","R4405"
"Wolverhampton City Council","http://opendatacommunities.org/id/metropolitan-district-council/wolverhampton","701834","BCC Mac T/A St Edmund�s Catholic","P15767620171103","600.00","Grant Payments to Individuals","190390248","23/01/2018","Looked After Children","LAC Education Team (LACE)","R6402"
"Wolverhampton City Council","http://opendatacommunities.org/id/metropolitan-district-council/wolverhampton","701834","BCC Mac T/A St Edmund�s Catholic","P15767620171103","600.00","Grant Payments to Individuals","190390248","23/01/2018","Looked After Children","LAC Education Team (LACE)","R6402"
"Wolverhampton City Council","http://opendatacommunities.org/id/metropolitan-district-council/wolverhampton","701834","BCC Mac T/A St Edmund�s Catholic","P15767620171103","600.00","Grant Payments to Individuals","190390248","23/01/2018","Looked After Children","LAC Education Team (LACE)","R6402"
"Wolverhampton City Council","http://opendatacommunities.org/id/metropolitan-district-council/wolverhampton","701834","BCC Mac T/A St Edmund�s Catholic","P15767620171103","600.00","Grant Payments to Individuals","190390248","23/01/2018","Looked After Children","LAC Education Team (LACE)","R6402"
"Wolverhampton City Council","http://opendatacommunities.org/id/metropolitan-district-council/wolverhampton","701834","BCC Mac T/A St Edmund�s Catholic","P15767620171103","600.00","Grant Payments to Individuals","190390248","23/01/2018","Looked After Children","LAC Education Team (LACE)","R6402"
"Wolverhampton City Council","http://opendatacommunities.org/id/metropolitan-district-council/wolverhampton","701834","BCC Mac T/A St Edmund�s Catholic","P15767620171103","600.00","Grant Payments to Individuals","190390248","23/01/2018","Looked After Children","LAC Education Team (LACE)","R6402"
"Wolverhampton City Council","http://opendatacommunities.org/id/metropolitan-district-council/wolverhampton","701834","BCC Mac T/A St Edmund�s Catholic","P157676 Correction","-3,600.00","Grant Payments to Individuals","130203254","23/01/2018","Looked After Children","LAC Education Team (LACE)","R6402"
"Wolverhampton City Council","http://opendatacommunities.org/id/metropolitan-district-council/wolverhampton","701842","Beacon Centre For The Blind","BCI2647920180122","500.00","TPP - Day Care","190414644","24/01/2018","Older People Care Purchasing","OP Care Purchasing (Spot Placements)","R5430"
"Wolverhampton City Council","http://opendatacommunities.org/id/metropolitan-district-council/wolverhampton","701842","Beacon Centre For The Blind","BCI2647920180122","250.00","TPP - Day Care","190414644","24/01/2018","Older People Care Purchasing","OP Care Purchasing (Spot Placements)","R5430"
"Wolverhampton City Council","http://opendatacommunities.org/id/metropolitan-district-council/wolverhampton","701842","Beacon Centre For The Blind","BCI2647920180122","450.00","TPP - Day Care","190414644","24/01/2018","Older People Care Purchasing","OP Care Purchasing (Spot Placements)","R5430"
"Wolverhampton City Council","http://opendatacommunities.org/id/metropolitan-district-council/wolverhampton","701842","Beacon Centre For The Blind","BCI2647820180122","48.30","TPP - Day Care","190414643","24/01/2018","Physical Disabilities Care Purchasing","PD Care Purchasing (Spot Placements)","R5430"
"Wolverhampton City Council","http://opendatacommunities.org/id/metropolitan-district-council/wolverhampton","701842","Beacon Centre For The Blind","BCI2647820180122","72.45","TPP - Day Care","190414643","24/01/2018","Older People Care Purchasing","OP Care Purchasing (Spot Placements)","R5430"
"Wolverhampton City Council","http://opendatacommunities.org/id/metropolitan-district-council/wolverhampton","701842","Beacon Centre For The Blind","BCI2647820180122","48.30","TPP - Day Care","190414643","24/01/2018","Physical Disabilities Care Purchasing","PD Care Purchasing (Spot Placements)","R5430"
"Wolverhampton City Council","http://opendatacommunities.org/id/metropolitan-district-council/wolverhampton","701842","Beacon Centre For The Blind","BCI2647820180122","48.30","TPP - Day Care","190414643","24/01/2018","Physical Disabilities Care Purchasing","PD Care Purchasing (Spot Placements)","R5430"
"Wolverhampton City Council","http://opendatacommunities.org/id/metropolitan-district-council/wolverhampton","701842","Beacon Centre For The Blind","BCI2647820180122","120.75","TPP - Day Care","190414643","24/01/2018","Older People Care Purchasing","OP Care Purchasing (Spot Placements)","R5430"
"Wolverhampton City Council","http://opendatacommunities.org/id/metropolitan-district-council/wolverhampton","701842","Beacon Centre For The Blind","BCI2647820180122","24.15","TPP - Day Care","190414643","24/01/2018","Physical Disabilities Care Purchasing","PD Care Purchasing (Spot Placements)","R5430"
"Wolverhampton City Council","http://opendatacommunities.org/id/metropolitan-district-council/wolverhampton","701842","Beacon Centre For The Blind","BCI2647820180122","24.15","TPP - Day Care","190414643","24/01/2018","Older People Care Purchasing","OP Care Purchasing (Spot Placements)","R5430"
"Wolverhampton City Council","http://opendatacommunities.org/id/metropolitan-district-council/wolverhampton","701842","Beacon Centre For The Blind","BCI2647820180122","24.15","TPP - Day Care","190414643","24/01/2018","Physical Disabilities Care Purchasing","PD Care Purchasing (Spot Placements)","R5430"
"Wolverhampton City Council","http://opendatacommunities.org/id/metropolitan-district-council/wolverhampton","701842","Beacon Centre For The Blind","BCI2647820180122","72.45","TPP - Day Care","190414643","24/01/2018","Physical Disabilities Care Purchasing","PD Care Purchasing (Spot Placements)","R5430"
"Wolverhampton City Council","http://opendatacommunities.org/id/metropolitan-district-council/wolverhampton","701842","Beacon Centre For The Blind","BCI2647820180122","24.15","TPP - Day Care","190414643","24/01/2018","Physical Disabilities Care Purchasing","PD Care Purchasing (Spot Placements)","R5430"
"Wolverhampton City Council","http://opendatacommunities.org/id/metropolitan-district-council/wolverhampton","701842","Beacon Centre For The Blind","BCI2647820180122","48.30","TPP - Day Care","190414643","24/01/2018","Physical Disabilities Care Purchasing","PD Care Purchasing (Spot Placements)","R5430"
"Wolverhampton City Council","http://opendatacommunities.org/id/metropolitan-district-council/wolverhampton","701842","Beacon Centre For The Blind","BCI2647820180122","96.60","TPP - Day Care","190414643","24/01/2018","Older People Care Purchasing","OP Care Purchasing (Spot Placements)","R5430"
"Wolverhampton City Council","http://opendatacommunities.org/id/metropolitan-district-council/wolverhampton","701842","Beacon Centre For The Blind","BCI2647820180122","144.90","TPP - Day Care","190414643","24/01/2018","Physical Disabilities Care Purchasing","PD Care Purchasing (Spot Placements)","R5430"
"Wolverhampton City Council","http://opendatacommunities.org/id/metropolitan-district-council/wolverhampton","701842","Beacon Centre For The Blind","BCI2647820180122","24.15","TPP - Day Care","190414643","24/01/2018","Older People Care Purchasing","OP Care Purchasing (Spot Placements)","R5430"
"Wolverhampton City Council","http://opendatacommunities.org/id/metropolitan-district-council/wolverhampton","701842","Beacon Centre For The Blind","BCI2647820180122","48.30","TPP - Day Care","190414643","24/01/2018","Older People Care Purchasing","OP Care Purchasing (Spot Placements)","R5430"
"Wolverhampton City Council","http://opendatacommunities.org/id/metropolitan-district-council/wolverhampton","701842","Beacon Centre For The Blind","BCI2647820180122","48.30","TPP - Day Care","190414643","24/01/2018","Older People Care Purchasing","OP Care Purchasing (Spot Placements)","R5430"
"Wolverhampton City Council","http://opendatacommunities.org/id/metropolitan-district-council/wolverhampton","701842","Beacon Centre For The Blind","BCI2647820180122","96.60","TPP - Day Care","190414643","24/01/2018","Physical Disabilities Care Purchasing","PD Care Purchasing (Spot Placements)","R5430"
"Wolverhampton City Council","http://opendatacommunities.org/id/metropolitan-district-council/wolverhampton","701842","Beacon Centre For The Blind","BCI2647820180122","48.30","TPP - Day Care","190414643","24/01/2018","Physical Disabilities Care Purchasing","PD Care Purchasing (Spot Placements)","R5430"
"Wolverhampton City Council","http://opendatacommunities.org/id/metropolitan-district-council/wolverhampton","701842","Beacon Centre For The Blind","BCI2647820180122","24.15","TPP - Day Care","190414643","24/01/2018","Physical Disabilities Care Purchasing","PD Care Purchasing (Spot Placements)","R5430"
"Wolverhampton City Council","http://opendatacommunities.org/id/metropolitan-district-council/wolverhampton","701842","Beacon Centre For The Blind","BCI2647820180122","48.30","TPP - Day Care","190414643","24/01/2018","Physical Disabilities Care Purchasing","PD Care Purchasing (Spot Placements)","R5430"
"Wolverhampton City Council","http://opendatacommunities.org/id/metropolitan-district-council/wolverhampton","701842","Beacon Centre For The Blind","BCI2647820180122","72.45","TPP - Day Care","190414643","24/01/2018","Physical Disabilities Care Purchasing","PD Care Purchasing (Spot Placements)","R5430"
"Wolverhampton City Council","http://opendatacommunities.org/id/metropolitan-district-council/wolverhampton","701842","Beacon Centre For The Blind","BCI2647820180122","24.15","TPP - Day Care","190414643","24/01/2018","Physical Disabilities Care Purchasing","PD Care Purchasing (Spot Placements)","R5430"
"Wolverhampton City Council","http://opendatacommunities.org/id/metropolitan-district-council/wolverhampton","701842","Beacon Centre For The Blind","BCI2647820180122","96.60","TPP - Day Care","190414643","24/01/2018","Older People Care Purchasing","OP Care Purchasing (Spot Placements)","R5430"
"Wolverhampton City Council","http://opendatacommunities.org/id/metropolitan-district-council/wolverhampton","701842","Beacon Centre For The Blind","BCI2647820180122","313.95","TPP - Day Care","190414643","24/01/2018","Older People Care Purchasing","OP Care Purchasing (Spot Placements)","R5430"
"Wolverhampton City Council","http://opendatacommunities.org/id/metropolitan-district-council/wolverhampton","701842","Beacon Centre For The Blind","BCI2647820180122","48.30","TPP - Day Care","190414643","24/01/2018","Older People Care Purchasing","OP Care Purchasing (Spot Placements)","R5430"
"Wolverhampton City Council","http://opendatacommunities.org/id/metropolitan-district-council/wolverhampton","701842","Beacon Centre For The Blind","BCI2647820180122","24.15","TPP - Day Care","190414643","24/01/2018","Learning Disabilities Care Purchasing","LD Care Purchasing (Spot Placements)","R5430"
"Wolverhampton City Council","http://opendatacommunities.org/id/metropolitan-district-council/wolverhampton","701842","Beacon Centre For The Blind","BCI2647820180122","48.30","TPP - Day Care","190414643","24/01/2018","Older People Care Purchasing","OP Care Purchasing (Spot Placements)","R5430"
"Wolverhampton City Council","http://opendatacommunities.org/id/metropolitan-district-council/wolverhampton","701842","Beacon Centre For The Blind","BCI2647820180122","48.30","TPP - Day Care","190414643","24/01/2018","Older People Care Purchasing","OP Care Purchasing (Spot Placements)","R5430"
"Wolverhampton City Council","http://opendatacommunities.org/id/metropolitan-district-council/wolverhampton","701842","Beacon Centre For The Blind","BCI2647820180122","96.60","TPP - Day Care","190414643","24/01/2018","Learning Disabilities Care Purchasing","LD Care Purchasing (Spot Placements)","R5430"
"Wolverhampton City Council","http://opendatacommunities.org/id/metropolitan-district-council/wolverhampton","701842","Beacon Centre For The Blind","BCI2647820180122","48.30","TPP - Day Care","190414643","24/01/2018","Physical Disabilities Care Purchasing","PD Care Purchasing (Spot Placements)","R5430"
"Wolverhampton City Council","http://opendatacommunities.org/id/metropolitan-district-council/wolverhampton","701842","Beacon Centre For The Blind","BCI2647820180122","24.15","TPP - Day Care","190414643","24/01/2018","Physical Disabilities Care Purchasing","PD Care Purchasing (Spot Placements)","R5430"
"Wolverhampton City Council","http://opendatacommunities.org/id/metropolitan-district-council/wolverhampton","701842","Beacon Centre For The Blind","BCI2647820180122","24.15","TPP - Day Care","190414643","24/01/2018","Older People Care Purchasing","OP Care Purchasing (Spot Placements)","R5430"
"Wolverhampton City Council","http://opendatacommunities.org/id/metropolitan-district-council/wolverhampton","701842","Beacon Centre For The Blind","BCI2647820180122","72.45","TPP - Day Care","190414643","24/01/2018","Physical Disabilities Care Purchasing","PD Care Purchasing (Spot Placements)","R5430"
"Wolverhampton City Council","http://opendatacommunities.org/id/metropolitan-district-council/wolverhampton","701842","Beacon Centre For The Blind","BCI2647820180122","48.30","TPP - Day Care","190414643","24/01/2018","Learning Disabilities Care Purchasing","LD Care Purchasing (Spot Placements)","R5430"
"Wolverhampton City Council","http://opendatacommunities.org/id/metropolitan-district-council/wolverhampton","701842","Beacon Centre For The Blind","BCI2647820180122","169.05","TPP - Day Care","190414643","24/01/2018","Older People Care Purchasing","OP Care Purchasing (Spot Placements)","R5430"
"Wolverhampton City Council","http://opendatacommunities.org/id/metropolitan-district-council/wolverhampton","701842","Beacon Centre For The Blind","BCI2647820180122","72.45","TPP - Day Care","190414643","24/01/2018","Older People Care Purchasing","OP Care Purchasing (Spot Placements)","R5430"
"Wolverhampton City Council","http://opendatacommunities.org/id/metropolitan-district-council/wolverhampton","701842","Beacon Centre For The Blind","BCI2647820180122","48.30","TPP - Day Care","190414643","24/01/2018","Physical Disabilities Care Purchasing","PD Care Purchasing (Spot Placements)","R5430"
"Wolverhampton City Council","http://opendatacommunities.org/id/metropolitan-district-council/wolverhampton","701842","Beacon Centre For The Blind","BCI2647820180122","72.45","TPP - Day Care","190414643","24/01/2018","Learning Disabilities Care Purchasing","LD Care Purchasing (Spot Placements)","R5430"
"Wolverhampton City Council","http://opendatacommunities.org/id/metropolitan-district-council/wolverhampton","701842","Beacon Centre For The Blind","P162962 04021820180116","1,014.30","TPP - Residential Care - Short Term","190412682","17/01/2018","Physical Disabilities Care Purchasing","PD Care Purchasing (Spot Placements)","R5401"
"Wolverhampton City Council","http://opendatacommunities.org/id/metropolitan-district-council/wolverhampton","701842","Beacon Centre For The Blind","BCI2648020180118","564.80","TPP - Supported Living","190413657","19/01/2018","Older People Care Purchasing","OP Care Purchasing (Spot Placements)","R5422"
"Wolverhampton City Council","http://opendatacommunities.org/id/metropolitan-district-council/wolverhampton","701842","Beacon Centre For The Blind","BCI2648020180118","1,073.12","TPP - Supported Living","190413657","19/01/2018","Older People Care Purchasing","OP Care Purchasing (Spot Placements)","R5422"
"Wolverhampton City Council","http://opendatacommunities.org/id/metropolitan-district-council/wolverhampton","701843","Beacon Land Surveys","2018026","2,150.00","Services - Professional Fees","130203301","26/01/2018","Estates and Valuations","Disposal Costs","R4400"
"Wolverhampton City Council","http://opendatacommunities.org/id/metropolitan-district-council/wolverhampton","701848","Bearing Man Limited","703888-00","60.55","Equipment - Purchase","190413586","19/01/2018","Fleet Services","Fleet Management","R4000"
"Wolverhampton City Council","http://opendatacommunities.org/id/metropolitan-district-council/wolverhampton","701880","Berendsen UK Limited","SN2784981","182.38","Protective Clothing","190410216","10/01/2018","Fleet Services","Fleet Management","R4200"
"Wolverhampton City Council","http://opendatacommunities.org/id/metropolitan-district-council/wolverhampton","701884","Berrybrook Primary School Fund A/C","TFT Spring 2018 Inst 1","7,356.96","Grant Payments","190415171","26/01/2018","Early Years","Early Years Entitlement Funding for Disadvantaged 2 Year Olds","R4700"
"Wolverhampton City Council","http://opendatacommunities.org/id/metropolitan-district-council/wolverhampton","701907","Beverages Direct Limited","691345","172.24","Provisions (Resale)","130202395","19/01/2018","Catering","Education Catering - General Overheads","R4102"
"Wolverhampton City Council","http://opendatacommunities.org/id/metropolitan-district-council/wolverhampton","701907","Beverages Direct Limited","691345","-172.24","Provisions (Resale)","130202395","19/01/2018","Catering","Education Catering - General Overheads","R4102"
"Wolverhampton City Council","http://opendatacommunities.org/id/metropolitan-district-council/wolverhampton","701907","Beverages Direct Limited","691345","78.44","Provisions (Resale)","130202395","19/01/2018","Catering","Education Catering - General Overheads","R4102"
"Wolverhampton City Council","http://opendatacommunities.org/id/metropolitan-district-council/wolverhampton","701907","Beverages Direct Limited","691345","93.80","Provisions (Resale)","130202395","19/01/2018","Catering","Education Catering - General Overheads","R4102"
"Wolverhampton City Council","http://opendatacommunities.org/id/metropolitan-district-council/wolverhampton","701945","Birmingham City University","11761243 - 004","2,700.00","Training Expenses","130201318","17/01/2018","Human Resources","Centralised Training","R1650"
"Wolverhampton City Council","http://opendatacommunities.org/id/metropolitan-district-council/wolverhampton","701945","Birmingham City University","13189988-023","6,750.00","Training Expenses","130201319","17/01/2018","Human Resources","Centralised Training","R1650"
"Wolverhampton City Council","http://opendatacommunities.org/id/metropolitan-district-council/wolverhampton","701962","Black Country Chamber Of Commerce","45610","1,000.00","TPP - Payments to Government Departments","130200906","05/01/2018","Enterprise","Business Engagement","R5102"
"Wolverhampton City Council","http://opendatacommunities.org/id/metropolitan-district-council/wolverhampton","701963","Black Country Consortium Limited","1816","27,233.20","Services - Professional Fees","130199515","05/01/2018","Enterprise","Growth Hub Phase 2 (2015/16)","R4400"
"Wolverhampton City Council","http://opendatacommunities.org/id/metropolitan-district-council/wolverhampton","701968","Black Country Partnership NHS Ft","3100000841","28,264.88","TPP - Social Care Support Services","130170676","17/01/2018","Service Director Children & Young People","Children & Young People Support Costs","R5501"
"Wolverhampton City Council","http://opendatacommunities.org/id/metropolitan-district-council/wolverhampton","701968","Black Country Partnership NHS Ft","3100000868","15,587.72","TPP - Social Care Support Services","130183415","17/01/2018","Service Director Children & Young People","Children & Young People Support Costs","R5501"
"Wolverhampton City Council","http://opendatacommunities.org/id/metropolitan-district-council/wolverhampton","701968","Black Country Partnership NHS Ft","3100000842","18,304.36","TPP - Social Care Support Services","130170677","17/01/2018","Service Director Children & Young People","Children & Young People Support Costs","R5501"
"Wolverhampton City Council","http://opendatacommunities.org/id/metropolitan-district-council/wolverhampton","701968","Black Country Partnership NHS Ft","3100000858","15,587.72","TPP - Social Care Support Services","130179539","17/01/2018","Service Director Children & Young People","Children & Young People Support Costs","R5501"
"Wolverhampton City Council","http://opendatacommunities.org/id/metropolitan-district-council/wolverhampton","701971","Black Country Touring","171856","2,008.00","Services - Professional Fees","130200607","17/01/2018","Visitor Economy","Bantock House Museum","R4400"
"Wolverhampton City Council","http://opendatacommunities.org/id/metropolitan-district-council/wolverhampton","701971","Black Country Touring","171853","300.00","Education trips, Holidays, Outings & Activities","130201540","10/01/2018","Early Intervention","EIP Locality 3 - Graiseley","R4970"
"Wolverhampton City Council","http://opendatacommunities.org/id/metropolitan-district-council/wolverhampton","701983","Blakenhall Neighbourhood Nursery","TFT Spring 2018 Inst 1","6,225.12","Grant Payments","190415171","26/01/2018","Early Years","Early Years Entitlement Funding for Disadvantaged 2 Year Olds","R4700"
"Wolverhampton City Council","http://opendatacommunities.org/id/metropolitan-district-council/wolverhampton","701983","Blakenhall Neighbourhood Nursery","4772","161.00","TPP - Child Care provided for client","130201823","24/01/2018","Adult Education","Discretionary Fund","R5034"
"Wolverhampton City Council","http://opendatacommunities.org/id/metropolitan-district-council/wolverhampton","701983","Blakenhall Neighbourhood Nursery","NEF Spring 2018 INST 1","20,400.00","TPP - Private Nursery Education Funding","190415159","26/01/2018","Early Years","Early Years Universal Entitlement for 3 and 4 Year Olds","R5035"
"Wolverhampton City Council","http://opendatacommunities.org/id/metropolitan-district-council/wolverhampton","701983","Blakenhall Neighbourhood Nursery","4784","115.00","TPP - Child Care provided for client","130199516","05/01/2018","Adult Education","Discretionary Fund","R5034"
"Wolverhampton City Council","http://opendatacommunities.org/id/metropolitan-district-council/wolverhampton","701983","Blakenhall Neighbourhood Nursery","4773","230.00","TPP - Child Care provided for client","130201822","24/01/2018","Adult Education","Discretionary Fund","R5034"
"Wolverhampton City Council","http://opendatacommunities.org/id/metropolitan-district-council/wolverhampton","701996","Blue Group Interntl Limited T/A Bluecare","HSOC5679856","17.55","Agency Staff","130200611","24/01/2018","Child Protection","CIN/CP Social Work Unit - Area 7","R1100"
"Wolverhampton City Council","http://opendatacommunities.org/id/metropolitan-district-council/wolverhampton","701996","Blue Group Interntl Limited T/A Bluecare","HSOC5675771","629.00","Agency Staff","130203496","31/01/2018","Child Protection","CIN/CP Social Work Unit - Area 7","R1100"
"Wolverhampton City Council","http://opendatacommunities.org/id/metropolitan-district-council/wolverhampton","701996","Blue Group Interntl Limited T/A Bluecare","HSOC5680560","1,258.00","Agency Staff","130200907","31/01/2018","Child Protection","CIN/CP Social Work Unit - Area 7","R1100"
"Wolverhampton City Council","http://opendatacommunities.org/id/metropolitan-district-council/wolverhampton","701996","Blue Group Interntl Limited T/A Bluecare","HSOC5679858","1,369.00","Agency Staff","130200612","24/01/2018","Child Protection","MASH","R1100"
"Wolverhampton City Council","http://opendatacommunities.org/id/metropolitan-district-council/wolverhampton","701996","Blue Group Interntl Limited T/A Bluecare","HSOC5679853","6.75","Agency Staff","130200608","24/01/2018","Child Protection","CIN/CP Social Work Unit - Area 7","R1100"
"Wolverhampton City Council","http://opendatacommunities.org/id/metropolitan-district-council/wolverhampton","701996","Blue Group Interntl Limited T/A Bluecare","HSOC5673329","629.00","Agency Staff","130203489","31/01/2018","Child Protection","CIN/CP Social Work Unit - Area 7","R1100"
"Wolverhampton City Council","http://opendatacommunities.org/id/metropolitan-district-council/wolverhampton","701996","Blue Group Interntl Limited T/A Bluecare","HSOC5673330","5.85","Agency Staff","130203490","31/01/2018","Child Protection","CIN/CP Social Work Unit - Area 7","R1100"
"Wolverhampton City Council","http://opendatacommunities.org/id/metropolitan-district-council/wolverhampton","701996","Blue Group Interntl Limited T/A Bluecare","HSOC5673332","42.75","Agency Staff","130203491","31/01/2018","Child Protection","CIN/CP Social Work Unit - Area 7","R1100"
"Wolverhampton City Council","http://opendatacommunities.org/id/metropolitan-district-council/wolverhampton","701996","Blue Group Interntl Limited T/A Bluecare","HSOC5679854","12.60","Agency Staff","130200609","24/01/2018","Child Protection","CIN/CP Social Work Unit - Area 7","R1100"
"Wolverhampton City Council","http://opendatacommunities.org/id/metropolitan-district-council/wolverhampton","701996","Blue Group Interntl Limited T/A Bluecare","HSOC5678941","629.00","Agency Staff","130199518","17/01/2018","Child Protection","CIN/CP Social Work Unit - Area 7","R1100"
"Wolverhampton City Council","http://opendatacommunities.org/id/metropolitan-district-council/wolverhampton","701996","Blue Group Interntl Limited T/A Bluecare","HSOC5675540","629.00","Agency Staff","130203494","31/01/2018","Child Protection","CIN/CP Social Work Unit - Area 7","R1100"
"Wolverhampton City Council","http://opendatacommunities.org/id/metropolitan-district-council/wolverhampton","701996","Blue Group Interntl Limited T/A Bluecare","HSOC5675772","14.40","Agency Staff","130203497","31/01/2018","Child Protection","CIN/CP Social Work Unit - Area 7","R1100"
"Wolverhampton City Council","http://opendatacommunities.org/id/metropolitan-district-council/wolverhampton","701996","Blue Group Interntl Limited T/A Bluecare","HSOC5678940","629.00","Agency Staff","130199517","17/01/2018","Child Protection","CIN/CP Social Work Unit - Area 7","R1100"
"Wolverhampton City Council","http://opendatacommunities.org/id/metropolitan-district-council/wolverhampton","701996","Blue Group Interntl Limited T/A Bluecare","HSOC5679855","952.00","Agency Staff","130200610","24/01/2018","Child Protection","CIN/CP Social Work Unit - Area 7","R1100"
"Wolverhampton City Council","http://opendatacommunities.org/id/metropolitan-district-council/wolverhampton","701996","Blue Group Interntl Limited T/A Bluecare","HSOC5675538","629.00","Agency Staff","130203492","31/01/2018","Child Protection","CIN/CP Social Work Unit - Area 7","R1100"
"Wolverhampton City Council","http://opendatacommunities.org/id/metropolitan-district-council/wolverhampton","701996","Blue Group Interntl Limited T/A Bluecare","HSOC5675539","14.85","Agency Staff","130203493","31/01/2018","Child Protection","CIN/CP Social Work Unit - Area 7","R1100"
"Wolverhampton City Council","http://opendatacommunities.org/id/metropolitan-district-council/wolverhampton","701996","Blue Group Interntl Limited T/A Bluecare","HSOC5675541","17.10","Agency Staff","130203495","31/01/2018","Child Protection","CIN/CP Social Work Unit - Area 7","R1100"
"Wolverhampton City Council","http://opendatacommunities.org/id/metropolitan-district-council/wolverhampton","702015","Boc Limited","3044968377","92.29","Gas","130201320","24/01/2018","Visitor Economy","The Little Civic","R2101"
"Wolverhampton City Council","http://opendatacommunities.org/id/metropolitan-district-council/wolverhampton","702015","Boc Limited","3044521199","216.20","Materials","130199161","10/01/2018","Human Resources","Occupational Health","R4007"
"Wolverhampton City Council","http://opendatacommunities.org/id/metropolitan-district-council/wolverhampton","702015","Boc Limited","3045020467","238.48","Gas","130201321","24/01/2018","Visitor Economy","Catering Overhead Account","R2101"
"Wolverhampton City Council","http://opendatacommunities.org/id/metropolitan-district-council/wolverhampton","702020","Boningale Nurseries","365803","398.30","R&M - Departmental planned (internal)","130203807","31/01/2018","Bereavement Services","Crematorium","R2000"
"Wolverhampton City Council","http://opendatacommunities.org/id/metropolitan-district-council/wolverhampton","702020","Boningale Nurseries","365803","270.00","R&M - Departmental planned (internal)","130203807","31/01/2018","Bereavement Services","Crematorium","R2000"
"Wolverhampton City Council","http://opendatacommunities.org/id/metropolitan-district-council/wolverhampton","702020","Boningale Nurseries","365341","1,874.25","Materials","130201855","17/01/2018","Environmental Maintenance","Graffiti Removal Team","R4007"
"Wolverhampton City Council","http://opendatacommunities.org/id/metropolitan-district-council/wolverhampton","702020","Boningale Nurseries","365341","714.36","Materials","130201855","17/01/2018","Environmental Maintenance","Graffiti Removal Team","R4007"
"Wolverhampton City Council","http://opendatacommunities.org/id/metropolitan-district-council/wolverhampton","702024","Booker Cash & Carry Limited","0471794","989.96","Provisions (Resale)","130202407","19/01/2018","Visitor Economy","Catering Overhead Account","R4102"
"Wolverhampton City Council","http://opendatacommunities.org/id/metropolitan-district-council/wolverhampton","702024","Booker Cash & Carry Limited","0471794","419.89","Equipment - Purchase","130202407","19/01/2018","Visitor Economy","Catering Overhead Account","R4000"
"Wolverhampton City Council","http://opendatacommunities.org/id/metropolitan-district-council/wolverhampton","702024","Booker Cash & Carry Limited","0245776","51.23","Equipment - Purchase","130202397","19/01/2018","Visitor Economy","Catering Overhead Account","R4000"
"Wolverhampton City Council","http://opendatacommunities.org/id/metropolitan-district-council/wolverhampton","702024","Booker Cash & Carry Limited","0245777","84.07","Provisions (Resale)","130202398","19/01/2018","Visitor Economy","Catering Overhead Account","R4102"
"Wolverhampton City Council","http://opendatacommunities.org/id/metropolitan-district-council/wolverhampton","702024","Booker Cash & Carry Limited","0470799","310.65","Provisions (Resale)","130202405","19/01/2018","Visitor Economy","Catering Overhead Account","R4102"
"Wolverhampton City Council","http://opendatacommunities.org/id/metropolitan-district-council/wolverhampton","702024","Booker Cash & Carry Limited","0470799","16.93","Equipment - Purchase","130202405","19/01/2018","Visitor Economy","Catering Overhead Account","R4000"
"Wolverhampton City Council","http://opendatacommunities.org/id/metropolitan-district-council/wolverhampton","702024","Booker Cash & Carry Limited","0346339","59.81","Cleaning Supplies and Materials","130202403","19/01/2018","Visitor Economy","Catering Overhead Account","R2705"
"Wolverhampton City Council","http://opendatacommunities.org/id/metropolitan-district-council/wolverhampton","702024","Booker Cash & Carry Limited","0345472","579.60","Provisions (Resale)","130202399","19/01/2018","Visitor Economy","Catering Overhead Account","R4102"
"Wolverhampton City Council","http://opendatacommunities.org/id/metropolitan-district-council/wolverhampton","702024","Booker Cash & Carry Limited","0345472","496.42","Contract Cleaning","130202399","19/01/2018","Visitor Economy","Catering Overhead Account","R2700"
"Wolverhampton City Council","http://opendatacommunities.org/id/metropolitan-district-council/wolverhampton","702024","Booker Cash & Carry Limited","0345653","127.61","Provisions (Resale)","130202400","19/01/2018","Visitor Economy","Catering Overhead Account","R4102"
"Wolverhampton City Council","http://opendatacommunities.org/id/metropolitan-district-council/wolverhampton","702024","Booker Cash & Carry Limited","0345653","152.25","Provisions (Resale)","130202400","19/01/2018","Visitor Economy","Catering Overhead Account","R4102"
"Wolverhampton City Council","http://opendatacommunities.org/id/metropolitan-district-council/wolverhampton","702024","Booker Cash & Carry Limited","0345653","46.38","Equipment - Purchase","130202400","19/01/2018","Visitor Economy","Catering Overhead Account","R4000"
"Wolverhampton City Council","http://opendatacommunities.org/id/metropolitan-district-council/wolverhampton","702024","Booker Cash & Carry Limited","0345732","76.07","Provisions (Resale)","130202401","19/01/2018","Visitor Economy","Catering Overhead Account","R4102"
"Wolverhampton City Council","http://opendatacommunities.org/id/metropolitan-district-council/wolverhampton","702024","Booker Cash & Carry Limited","0345732","60.93","Equipment - Purchase","130202401","19/01/2018","Visitor Economy","Catering Overhead Account","R4000"
"Wolverhampton City Council","http://opendatacommunities.org/id/metropolitan-district-council/wolverhampton","702024","Booker Cash & Carry Limited","0470896","217.42","Cleaning Supplies and Materials","130202406","19/01/2018","Visitor Economy","Catering Overhead Account","R2705"
"Wolverhampton City Council","http://opendatacommunities.org/id/metropolitan-district-council/wolverhampton","702024","Booker Cash & Carry Limited","0345821","141.36","Provisions (Resale)","130202402","19/01/2018","Visitor Economy","Catering Overhead Account","R4102"
"Wolverhampton City Council","http://opendatacommunities.org/id/metropolitan-district-council/wolverhampton","702024","Booker Cash & Carry Limited","0345821","117.65","Provisions (Resale)","130202402","19/01/2018","Visitor Economy","Catering Overhead Account","R4102"
"Wolverhampton City Council","http://opendatacommunities.org/id/metropolitan-district-council/wolverhampton","702024","Booker Cash & Carry Limited","0347043","734.69","Provisions (Resale)","130202404","19/01/2018","Visitor Economy","Catering Overhead Account","R4102"
"Wolverhampton City Council","http://opendatacommunities.org/id/metropolitan-district-council/wolverhampton","702024","Booker Cash & Carry Limited","0347043","83.54","Provisions (Resale)","130202404","19/01/2018","Visitor Economy","Catering Overhead Account","R4102"
"Wolverhampton City Council","http://opendatacommunities.org/id/metropolitan-district-council/wolverhampton","702024","Booker Cash & Carry Limited","0245774","339.40","Provisions (Resale)","130202396","19/01/2018","Visitor Economy","Catering Overhead Account","R4102"
"Wolverhampton City Council","http://opendatacommunities.org/id/metropolitan-district-council/wolverhampton","702024","Booker Cash & Carry Limited","0245774","88.42","Provisions (Resale)","130202396","19/01/2018","Visitor Economy","Catering Overhead Account","R4102"
"Wolverhampton City Council","http://opendatacommunities.org/id/metropolitan-district-council/wolverhampton","702041","Boulton Travel Limited","BTWCTW12.4","1,495.00","Client Transport","130201057","17/01/2018","School Planning & Resources","Special - Transport","R3042"
"Wolverhampton City Council","http://opendatacommunities.org/id/metropolitan-district-council/wolverhampton","702041","Boulton Travel Limited","BTWCBM1.26","1,140.00","Client Transport","130201052","17/01/2018","School Planning & Resources","Special - Transport","R3042"
"Wolverhampton City Council","http://opendatacommunities.org/id/metropolitan-district-council/wolverhampton","702041","Boulton Travel Limited","BTWCBM3.26","1,080.00","Client Transport","130201053","17/01/2018","School Planning & Resources","Special - Transport","R3042"
"Wolverhampton City Council","http://opendatacommunities.org/id/metropolitan-district-council/wolverhampton","702041","Boulton Travel Limited","BTWCBM5.26","1,080.00","Client Transport","130201055","17/01/2018","School Planning & Resources","Special - Transport","R3042"
"Wolverhampton City Council","http://opendatacommunities.org/id/metropolitan-district-council/wolverhampton","702041","Boulton Travel Limited","BTWCGPT3.1","935.00","Client Transport","130201056","17/01/2018","School Planning & Resources","Special - Transport","R3042"
"Wolverhampton City Council","http://opendatacommunities.org/id/metropolitan-district-council/wolverhampton","702041","Boulton Travel Limited","BTWCBM4.26","1,080.00","Client Transport","130201054","17/01/2018","School Planning & Resources","Special - Transport","R3042"
"Wolverhampton City Council","http://opendatacommunities.org/id/metropolitan-district-council/wolverhampton","702041","Boulton Travel Limited","BTHS20A","400.00","Client Transport","130196372","24/01/2018","Headstart","B-Safe","R3042"
"Wolverhampton City Council","http://opendatacommunities.org/id/metropolitan-district-council/wolverhampton","702046","Bourne Leisure Limited","BR00268838","207.24","TPP - Short Breaks","130202411","24/01/2018","Carer Support","Carers Support","R5500"
"Wolverhampton City Council","http://opendatacommunities.org/id/metropolitan-district-council/wolverhampton","702046","Bourne Leisure Limited","GR00303863","49.33","TPP - Short Breaks","130202418","24/01/2018","Carer Support","Carers Support","R5500"
"Wolverhampton City Council","http://opendatacommunities.org/id/metropolitan-district-council/wolverhampton","702046","Bourne Leisure Limited","GR00324535","54.17","TPP - Short Breaks","130202422","24/01/2018","Carer Support","Carers Support","R5500"
"Wolverhampton City Council","http://opendatacommunities.org/id/metropolitan-district-council/wolverhampton","702046","Bourne Leisure Limited","GR00327866","29.17","TPP - Short Breaks","130197549","03/01/2018","Carer Support","Carers Support","R5500"
"Wolverhampton City Council","http://opendatacommunities.org/id/metropolitan-district-council/wolverhampton","702046","Bourne Leisure Limited","GR00327866","-29.17","TPP - Short Breaks","130197549","03/01/2018","Carer Support","Carers Support","R5500"
"Wolverhampton City Council","http://opendatacommunities.org/id/metropolitan-district-council/wolverhampton","702046","Bourne Leisure Limited","GR00327866","29.17","TPP - Short Breaks","130197549","03/01/2018","Carer Support","Carers Support","R5500"
"Wolverhampton City Council","http://opendatacommunities.org/id/metropolitan-district-council/wolverhampton","702046","Bourne Leisure Limited","BR00262789","8.33","TPP - Short Breaks","130202408","31/01/2018","Carer Support","Carers Support","R5500"
"Wolverhampton City Council","http://opendatacommunities.org/id/metropolitan-district-council/wolverhampton","702046","Bourne Leisure Limited","BR00262789","-8.33","TPP - Short Breaks","130202408","31/01/2018","Carer Support","Carers Support","R5500"
"Wolverhampton City Council","http://opendatacommunities.org/id/metropolitan-district-council/wolverhampton","702046","Bourne Leisure Limited","BR00262789","8.33","TPP - Short Breaks","130202408","31/01/2018","Carer Support","Carers Support","R5500"
"Wolverhampton City Council","http://opendatacommunities.org/id/metropolitan-district-council/wolverhampton","702046","Bourne Leisure Limited","BR00267155","5,705.00","TPP - Short Breaks","130201322","31/01/2018","Carer Support","Carers Support","R5500"
"Wolverhampton City Council","http://opendatacommunities.org/id/metropolitan-district-council/wolverhampton","702046","Bourne Leisure Limited","BR00267155","-5,705.00","TPP - Short Breaks","130201322","31/01/2018","Carer Support","Carers Support","R5500"
"Wolverhampton City Council","http://opendatacommunities.org/id/metropolitan-district-council/wolverhampton","702046","Bourne Leisure Limited","BR00267155","5,705.00","TPP - Short Breaks","130201322","31/01/2018","Carer Support","Carers Support","R5500"
"Wolverhampton City Council","http://opendatacommunities.org/id/metropolitan-district-council/wolverhampton","702046","Bourne Leisure Limited","GR00325383","-372.08","TPP - Short Breaks","130202423","24/01/2018","Carer Support","Carers Support","R5500"
"Wolverhampton City Council","http://opendatacommunities.org/id/metropolitan-district-council/wolverhampton","702046","Bourne Leisure Limited","GR00301883","8.33","TPP - Short Breaks","130202417","24/01/2018","Carer Support","Carers Support","R5500"
"Wolverhampton City Council","http://opendatacommunities.org/id/metropolitan-district-council/wolverhampton","702046","Bourne Leisure Limited","GR00313620","186.45","TPP - Short Breaks","130202419","24/01/2018","Carer Support","Carers Support","R5500"
"Wolverhampton City Council","http://opendatacommunities.org/id/metropolitan-district-council/wolverhampton","702046","Bourne Leisure Limited","GR00320411","-46.75","TPP - Short Breaks","130202421","24/01/2018","Carer Support","Carers Support","R5500"
"Wolverhampton City Council","http://opendatacommunities.org/id/metropolitan-district-council/wolverhampton","702046","Bourne Leisure Limited","GR00320411","46.75","TPP - Short Breaks","130202421","24/01/2018","Carer Support","Carers Support","R5500"
"Wolverhampton City Council","http://opendatacommunities.org/id/metropolitan-district-council/wolverhampton","702046","Bourne Leisure Limited","BR00268484","29.17","TPP - Short Breaks","130202410","24/01/2018","Carer Support","Carers Support","R5500"
"Wolverhampton City Council","http://opendatacommunities.org/id/metropolitan-district-council/wolverhampton","702046","Bourne Leisure Limited","BR00268484","-29.17","TPP - Short Breaks","130202410","24/01/2018","Carer Support","Carers Support","R5500"
"Wolverhampton City Council","http://opendatacommunities.org/id/metropolitan-district-council/wolverhampton","702046","Bourne Leisure Limited","BR00268484","29.17","TPP - Short Breaks","130202410","24/01/2018","Carer Support","Carers Support","R5500"
"Wolverhampton City Council","http://opendatacommunities.org/id/metropolitan-district-council/wolverhampton","702046","Bourne Leisure Limited","BR00263609","60.33","TPP - Short Breaks","130202409","24/01/2018","Carer Support","Carers Support","R5500"
"Wolverhampton City Council","http://opendatacommunities.org/id/metropolitan-district-council/wolverhampton","702046","Bourne Leisure Limited","BR00263609","-60.33","TPP - Short Breaks","130202409","24/01/2018","Carer Support","Carers Support","R5500"
"Wolverhampton City Council","http://opendatacommunities.org/id/metropolitan-district-council/wolverhampton","702046","Bourne Leisure Limited","BR00263609","60.33","TPP - Short Breaks","130202409","24/01/2018","Carer Support","Carers Support","R5500"
"Wolverhampton City Council","http://opendatacommunities.org/id/metropolitan-district-council/wolverhampton","702046","Bourne Leisure Limited","GR00320411","46.75","TPP - Short Breaks","130202421","24/01/2018","Carer Support","Carers Support","R5500"
"Wolverhampton City Council","http://opendatacommunities.org/id/metropolitan-district-council/wolverhampton","702046","Bourne Leisure Limited","GR00326382","4,850.83","TPP - Short Breaks","130202424","24/01/2018","Carer Support","Carers Support","R5500"
"Wolverhampton City Council","http://opendatacommunities.org/id/metropolitan-district-council/wolverhampton","702046","Bourne Leisure Limited","GR00328665","187.16","TPP - Short Breaks","130202425","24/01/2018","Carer Support","Carers Support","R5500"
"Wolverhampton City Council","http://opendatacommunities.org/id/metropolitan-district-council/wolverhampton","702046","Bourne Leisure Limited","GR00317437","82.50","TPP - Short Breaks","130202420","24/01/2018","Carer Support","Carers Support","R5500"
"Wolverhampton City Council","http://opendatacommunities.org/id/metropolitan-district-council/wolverhampton","702057","Bradley Environmental Consultant Limited","19381","1,250.00","Training Expenses","130201856","17/01/2018","Human Resources","Centralised Training","R1650"
"Wolverhampton City Council","http://opendatacommunities.org/id/metropolitan-district-council/wolverhampton","702057","Bradley Environmental Consultant Limited","19381","310.00","Training Expenses","130201856","17/01/2018","Human Resources","Centralised Training","R1650"
"Wolverhampton City Council","http://opendatacommunities.org/id/metropolitan-district-council/wolverhampton","702064","Brady Corporation Ltd(Seton)","9302715811","52.90","Equipment - Purchase","190410177","10/01/2018","Fleet Services","Fleet Management","R4000"
"Wolverhampton City Council","http://opendatacommunities.org/id/metropolitan-district-council/wolverhampton","702071","Brakes/Brakefresh","9269042110","329.93","Provisions (Resale)","130202069","17/01/2018","Catering","Civic Centre Catering","R4102"
"Wolverhampton City Council","http://opendatacommunities.org/id/metropolitan-district-council/wolverhampton","702071","Brakes/Brakefresh","9269042110","-329.93","Provisions (Resale)","130202069","17/01/2018","Catering","Civic Centre Catering","R4102"
"Wolverhampton City Council","http://opendatacommunities.org/id/metropolitan-district-council/wolverhampton","702071","Brakes/Brakefresh","9269042110","8.85","Provisions (Resale)","130202069","17/01/2018","Catering","Civic Centre Catering","R4102"
"Wolverhampton City Council","http://opendatacommunities.org/id/metropolitan-district-council/wolverhampton","702071","Brakes/Brakefresh","9269042110","321.08","Provisions (Resale)","130202069","17/01/2018","Catering","Civic Centre Catering","R4102"
"Wolverhampton City Council","http://opendatacommunities.org/id/metropolitan-district-council/wolverhampton","702071","Brakes/Brakefresh","74643601","-41.18","Provisions (Resale)","130202068","17/01/2018","Catering","Civic Centre Catering","R4102"
"Wolverhampton City Council","http://opendatacommunities.org/id/metropolitan-district-council/wolverhampton","702071","Brakes/Brakefresh","74643601","41.18","Provisions (Resale)","130202068","17/01/2018","Catering","Civic Centre Catering","R4102"
"Wolverhampton City Council","http://opendatacommunities.org/id/metropolitan-district-council/wolverhampton","702071","Brakes/Brakefresh","74643601","41.18","Provisions (Resale)","130202068","17/01/2018","Catering","Civic Centre Catering","R4102"
"Wolverhampton City Council","http://opendatacommunities.org/id/metropolitan-district-council/wolverhampton","702071","Brakes/Brakefresh","9269037436","443.74","Provisions (Resale)","130203500","26/01/2018","Catering","Civic Centre Catering","R4102"
"Wolverhampton City Council","http://opendatacommunities.org/id/metropolitan-district-council/wolverhampton","702071","Brakes/Brakefresh","9269037436","-443.74","Provisions (Resale)","130203500","26/01/2018","Catering","Civic Centre Catering","R4102"
"Wolverhampton City Council","http://opendatacommunities.org/id/metropolitan-district-council/wolverhampton","702071","Brakes/Brakefresh","9269037436","8.85","Provisions (Resale)","130203500","26/01/2018","Catering","Civic Centre Catering","R4102"
"Wolverhampton City Council","http://opendatacommunities.org/id/metropolitan-district-council/wolverhampton","702071","Brakes/Brakefresh","9269037436","434.89","Provisions (Resale)","130203500","26/01/2018","Catering","Civic Centre Catering","R4102"
"Wolverhampton City Council","http://opendatacommunities.org/id/metropolitan-district-council/wolverhampton","702071","Brakes/Brakefresh","9269087533","330.09","Provisions (Resale)","130202430","31/01/2018","Catering","Civic Centre Catering","R4102"
"Wolverhampton City Council","http://opendatacommunities.org/id/metropolitan-district-council/wolverhampton","702071","Brakes/Brakefresh","9269087533","-330.09","Provisions (Resale)","130202430","31/01/2018","Catering","Civic Centre Catering","R4102"
"Wolverhampton City Council","http://opendatacommunities.org/id/metropolitan-district-council/wolverhampton","702071","Brakes/Brakefresh","9269087533","7.49","Provisions (Resale)","130202430","31/01/2018","Catering","Civic Centre Catering","R4102"
"Wolverhampton City Council","http://opendatacommunities.org/id/metropolitan-district-council/wolverhampton","702071","Brakes/Brakefresh","9269087533","322.60","Provisions (Resale)","130202430","31/01/2018","Catering","Civic Centre Catering","R4102"
"Wolverhampton City Council","http://opendatacommunities.org/id/metropolitan-district-council/wolverhampton","702071","Brakes/Brakefresh","9269004452","32.62","Provisions (Resale)","130203302","26/01/2018","Catering","Civic Centre Catering","R4102"
